Cogmind - Beta 13 X1 @@@ ROGUE MODE // 2023.12.04 @ 23:06:42 Player: AlmondRoll Result: Self-destructed Performance ------------- Evolutions (8) 4000 Regions Visited (32) 6400 Robots Destroyed (284) 1420 Value Destroyed (7846) 7846 Prototype IDs (96) 1920 Alien Tech Used (4) 800 Bonus (17) 17 TOTAL SCORE: 22403 Bonus ------- High Alert Combat Kills 260 Follower Combat Kills 1105 Entered Garrisons 200 Met Data Miner 300 Met Imprinter 300 Met Zhirov 300 Friendly Fire -2448 Cogmind --------- Core Integrity 1026/1450 Matter 274/300 Energy 82/600 System Corruption 7% Temperature Cool (0) Movement Walking (113) Location -2/Garrison Parts ------- > --- POWER (3) -------- (None) > --- PROPULSION (6) --- Myomer Leg Myomer Leg Biometal Leg Biometal Leg Biometal Leg Biometal Leg > --- UTILITY (13) ----- Advanced Heat Sink Advanced Heat Sink Advanced Heat Sink Medium Storage Unit Advanced Energy Well Advanced Signal Interpreter AEGIS Remote Shield Advanced Hacking Suite System Mapper Advanced System Shield > --- WEAPON (2) ------- Cooled Nova Cannon Nanosword > --- INVENTORY (10) --- Biometal Leg Biometal Leg Structural Scanner Triangulator Long-range Sensor Array Advanced Transmission Jammer Advanced ECM Suite Improved System Shield Nanosword CR-A16's Behemoth Slayer Peak State ------------ > --- POWER ------------ Light Fission Core Micro Fission Core Micro Antimatter Reactor > --- PROPULSION ------- Field Propulsion Drive Impulse Thruster Improved Diametric Drive Cooled Impulse Thruster Impulse Thruster Array > --- UTILITY ---------- Advanced Power Amplifier Medium Storage Unit Advanced Energy Well Quantum Shading Machine Advanced Signal Interpreter Advanced Transmission Jammer Advanced Reaction Control System Improved Phase Shifter Improved Utility Shielding Medium Regenerative Plating Advanced Hacking Suite System Mapper Advanced System Shield > --- WEAPON ----------- Cooled Nova Cannon Nanosword > --- INVENTORY -------- Field Propulsion Drive Structural Scanner Triangulator Long-range Sensor Array Advanced ECM Suite AEGIS Remote Shield Improved System Shield Transdimensional Reconstructor Nanosword CR-A16's Behemoth Slayer [Rating: 177] Favorites ----------- Power Micro Fission Core Engine Light Ion Engine Power Core Micro Fission Core Reactor Light Antimatter Reactor Propulsion Cooled VTOL Module Treads Light Treads Leg Myomer Leg Wheel Armored Wheel Hover Unit Improved Antigrav System Flight Unit Cooled VTOL Module Utility Medium Storage Unit Device Structural Scanner Storage Medium Storage Unit Processor Improved Signal Interpreter Hackware System Mapper Protection Improved Utility Shielding Weapon Improved Datajack Energy Gun Small Laser Energy Cannon Subdweller Beam Cannon Ballistic Gun Assault Rifle Launcher Mini Grenade Launcher Special Weapon Welding Torch Impact Weapon Power Maul Slashing Weapon Nanosword Piercing Weapon CR-A16's Behemoth Slayer Special Melee Weapon Improved Datajack Build | -11 -10 -10 -8 -7 -7 -7 -7 -7 -7 -6 -6 -6 -6 -6 -6 -6 -5 -5 -5 -5 -5 -5 -5 -4 -4 -4 -4 -4 -3 -3 -2 -2 ------- Run | Jun Mat Sub Mat Fac Was Fac Low Low Dat Pro Fac Was Fac Low Low Zio Pro Fac Was Fac Upp Upp Zhi Pro Fac Was Fac Ext Res Tes Res Gar Slots Evolved 16 | . . . 4 2 . . . . . . 2 . . . . . . 2 . . . . . . 2 . . . 2 . 2 . Power 1 | . . . . 1 . . . . . . . . . . . . . . . . . . . . . . . . . . . . Propulsion 4 | . . . 2 1 . . . . . . 1 . . . . . . . . . . . . . . . . . . . . . Utility 11 | . . . 2 . . . . . . . 1 . . . . . . 2 . . . . . . 2 . . . 2 . 2 . Weapon . | . . . . . . . . . . . . . . . . . . . . . . . . . . . . . . . . . Parts Attached 584 | 3 10 19 51 20 . 19 2 4 . 1 68 . 31 6 1 7 1 45 . 22 5 7 6 2 10 . 82 25 16 50 46 25 Power 44 | . . 2 3 3 . 1 . . . 1 2 . 2 . . . . 2 . . . . 1 1 . . 9 6 1 1 6 3 Engine 3 | . . 2 1 . . . . . . . . . . . . . . . . . . . . . . . . . . . . . Core 25 | . . . 2 3 . 1 . . . 1 2 . 2 . . . . 2 . . . . . 1 . . 5 4 1 1 . . Reactor 16 | . . . . . . . . . . . . . . . . . . . . . . . 1 . . . 4 2 . . 6 3 Propulsion 82 | 2 2 2 17 5 . . . . . . 1 . . . . 1 . 8 . . . . 2 . 2 . 10 4 1 5 10 10 Treads 19 | 2 2 2 13 . . . . . . . . . . . . . . . . . . . . . . . . . . . . . Leg 11 | . . . . . . . . . . . . . . . . . . . . . . . 1 . . . . . . . . 10 Wheel 2 | . . . 2 . . . . . . . . . . . . . . . . . . . . . . . . . . . . . Hover 9 | . . . 1 . . . . . . . . . . . . . . . . . . . . . . . . . . . 8 . Flight 41 | . . . 1 5 . . . . . . 1 . . . . 1 . 8 . . . . 1 . 2 . 10 4 1 5 2 . Utility 311 | . 3 . 16 3 . 8 . 4 . . 47 . 17 2 . 4 . 27 . 18 4 6 1 . 8 . 52 13 13 31 27 7 Device 262 | . 1 . 11 2 . 6 . 4 . . 41 . 16 2 . 4 . 23 . 13 3 6 1 . 5 . 43 12 11 27 25 6 Storage 12 | . 2 . 2 . . . . . . . . . . . . . . 1 . 1 . . . . 1 . 2 . . 1 1 1 Processor 13 | . . . 2 1 . 1 . . . . 3 . . . . . . 1 . . . . . . 1 . 2 1 1 . . . Hackware 10 | . . . 1 . . . . . . . 3 . 1 . . . . 1 . 2 . . . . 1 . 1 . . . . . Protection 14 | . . . . . . 1 . . . . . . . . . . . 1 . 2 1 . . . . . 4 . 1 3 1 . Artifact . | . . . . . . . . . . . . . . . . . . . . . . . . . . . . . . . . . Weapon 147 | 1 5 15 15 9 . 10 2 . . . 18 . 12 4 1 2 1 8 . 4 1 1 2 1 . . 11 2 1 13 3 5 Energy Gun 3 | 1 . 1 . . . . . . . . . . . . . . . . . . . . . . . . . . . 1 . . Energy Cannon 16 | . . 2 3 . . . . . . . . . 2 . . . . . . . . . . . . . . 1 . 5 1 2 Ballistic Gun 17 | . 3 6 7 . . . . . . . . . . . . . . . . . . . . . . . . 1 . . . . Ballistic Cannon . | . . . . . . . . . . . . . . . . . . . . . . . . . . . . . . . . . Launcher 13 | . . 1 1 1 . . 1 . . . 1 . 1 2 . . . . . 2 . 1 . . . . 2 . . . . . Special Weapon 1 | . . . . . . . . . . . 1 . . . . . . . . . . . . . . . . . . . . . Impact Weapon 27 | . 1 . . 3 . 3 . . . . 7 . 5 . . 1 . 5 . 1 . . . . . . 1 . . . . . Slashing Weapon 18 | . 1 5 4 3 . . . . . . . . . . . . . . . . . . . . . . . . . 1 2 2 Piercing Weapon 40 | . . . . 1 . 5 1 . . . 7 . 4 . . 1 1 3 . 1 1 . 2 1 . . 4 . 1 6 . 1 Special Melee Weapon 12 | . . . . 1 . 2 . . . . 2 . . 2 1 . . . . . . . . . . . 4 . . . . . Unidentified Prototypes 34 | . . . 2 . . . . . . . 1 . . . . 2 . 2 . 1 . 2 3 . . . 4 1 1 15 . . Corrupted Parts 2 | . . . . . . . . . . . . . . . . . . . . . . . . . . . . . . . 2 . System Corruption 3 | . . . . . . . . . . . . . . . . . . . . . . . . . . . . . . . 3 . Parts Lost 49 | . . 4 2 . . . . . 2 . 1 . . . . . . . . 1 . . . . 2 . 9 7 1 . 9 11 Power 8 | . . 2 . . . . . . . . . . . . . . . . . . . . . . . . 1 . . . 2 3 Propulsion 19 | . . 1 . . . . . . . . . . . . . . . . . . . . . . 2 . 3 5 . . 4 4 Utility 17 | . . . 1 . . . . . 2 . . . . . . . . . . 1 . . . . . . 3 2 1 . 3 4 Weapon 5 | . . 1 1 . . . . . . . 1 . . . . . . . . . . . . . . . 2 . . . . . Highest Loss Streak 6 | . . 2 2 . . . . . 2 . 1 . . . . . . . . 1 . . . . 2 . 3 3 1 . 4 6 To Critical Strikes . | . . . . . . . . . . . . . . . . . . . . . . . . . . . . . . . . . Average Slot Usage (%) 88 | . 96 96 93 79 81 80 81 81 73 68 82 83 82 83 83 83 83 87 100 99 100 96 93 100 98 95 96 79 83 88 92 90 Engine 2 | . 14 10 3 . . . . . . . . . . . . . . . . . . . . . . . . . . . . . Core 8 | . . . 5 11 12 11 12 12 12 12 10 11 11 11 11 11 11 10 11 11 11 11 11 16 14 10 9 14 13 13 5 . Treads 5 | . 28 28 20 . . . . . . . . . . . . . . . . . . . . . . . . . . . . . Flight 14 | . . . 1 11 12 12 12 12 12 12 16 16 16 16 16 16 16 18 35 35 35 33 33 33 29 30 29 15 13 15 10 . Device 15 | . 6 14 25 20 18 15 18 18 11 6 11 5 9 16 16 16 16 20 17 13 11 10 10 11 19 20 15 13 17 20 22 17 Storage 7 | . 18 14 8 6 6 6 6 6 6 6 5 5 5 5 5 5 5 4 5 5 5 5 5 5 5 5 5 5 4 4 4 7 Processor 7 | . . . 3 9 12 14 12 12 12 12 15 22 11 5 5 5 5 3 5 5 5 5 5 5 5 5 9 10 11 4 4 4 Hackware 9 | . . . 1 6 6 6 6 6 6 6 10 11 15 16 16 16 16 17 11 14 11 11 11 11 15 15 13 15 13 13 12 12 Ballistic Gun 2 | . 18 10 7 . . . . . . . . . . . . . . . . . . . . . . . . . . . . . Impact Weapon 1 | . 4 . . 1 6 1 . . . . 1 . 2 5 5 5 3 4 5 4 . . . . . . . . . . . . Slashing Weapon 1 | . 1 7 2 4 . . . . . . . . . . . . . . . . . . . . . . . . . . 5 7 Piercing Weapon 2 | . . . . . . 4 6 6 6 6 3 5 2 . . . 1 . . . 5 5 5 5 5 5 5 5 7 7 . . Special Melee Weapon 2 | . . . . 1 . 5 5 . . . 4 5 4 3 5 5 5 5 5 5 5 . . . . . 2 . . . . . Naked Turns . | . . . . . . . . . . . . . . . . . . . . . . . . . . . . . . . . . Heaviest Build 97 | 11 31 38 40 28 27 29 27 29 27 27 33 29 32 28 28 28 28 31 28 34 33 33 33 34 36 31 48 39 49 62 85 97 Greatest Support 159 | 40 40 40 80 31 31 31 29 29 31 29 38 34 38 38 38 34 38 46 46 46 46 46 36 46 46 35 57 43 54 66 92 159 Greatest Overweight (x) 3 | . . . 3 . . . . . . . . . . . . . . 2 . . . . 1 . 1 . 1 1 . 1 2 2 Average Overweight (x) . | . . . 1 . . . . . . . . . . . . . . . . . . . . . . . . . . . . . Largest Inventory Capacity 15 | 8 15 15 15 10 10 10 10 10 10 10 10 10 10 10 10 10 10 10 10 10 10 10 10 10 10 10 10 10 10 10 10 10 Average Capacity 10 | 8 11 15 13 10 10 10 10 10 10 10 10 10 10 10 10 10 10 9 10 10 10 10 10 10 10 10 10 10 10 10 10 10 Most Carried 15 | 6 12 15 15 10 10 10 10 10 10 10 10 10 10 10 10 10 10 10 10 10 10 10 10 10 10 10 10 10 10 10 10 10 Average Carried 10 | 6 8 14 13 9 9 9 10 10 10 10 9 10 9 10 10 9 9 9 9 9 9 10 9 10 9 10 9 9 9 9 9 9 Final Capacity 15 | 8 15 15 10 10 10 10 10 10 10 10 10 10 10 10 10 10 10 10 10 10 10 10 10 10 10 10 10 10 10 10 10 10 Final Carried 15 | 6 11 15 10 10 10 10 10 10 10 10 10 10 10 10 10 10 10 9 10 10 10 10 10 10 10 10 10 10 10 10 10 10 Class Distribution -------------------- 20% | Scavenger-Ninja 19% | Hacker-Ninja 17% | Hacker-Scout 11% | Scavenger-Mutant 11% | Mutant 7% | Hacker-Sprinter 5% | Hacker-Mutant 4% | Scavenger-Scout Dominant Class ---------------- Mutant | -10/Materials Scavenger-Mutant | -10/Subcaves Scavenger-Mutant | -8/Materials Scavenger-Ninja | -7/Factory Scavenger-Ninja | -7/Waste Scavenger-Ninja | -7/Factory Scavenger-Ninja | -7/Lower Caves Scavenger-Ninja | -7/Lower Caves Scavenger-Mutant | -7/Data Miner Scavenger-Mutant | -6/Proximity Caves Scavenger-Scout | -6/Factory Scavenger-Scout | -6/Waste Hacker-Scout | -6/Factory Hacker-Scout | -6/Lower Caves Hacker-Scout | -6/Lower Caves Hacker-Scout | -6/Zion Hacker-Scout | -5/Proximity Caves Hacker-Ninja | -5/Factory Hacker-Sprinter | -5/Waste Hacker-Scout | -5/Factory Hacker-Scout | -5/Upper Caves Hacker-Scout | -5/Upper Caves Hacker-Scout | -5/Zhirov Hacker-Scout | -4/Proximity Caves Hacker-Ninja | -4/Factory Hacker-Sprinter | -4/Waste Hacker-Ninja | -4/Factory Hacker-Mutant | -4/Extension Hacker-Scout | -3/Research Hacker-Mutant | -3/Testing Hacker-Ninja | -2/Research Scavenger-Mutant | -2/Garrison Resources | -11 -10 -10 -8 -7 -7 -7 -7 -7 -7 -6 -6 -6 -6 -6 -6 -6 -5 -5 -5 -5 -5 -5 -5 -4 -4 -4 -4 -4 -3 -3 -2 -2 ----------- Run | Jun Mat Sub Mat Fac Was Fac Low Low Dat Pro Fac Was Fac Low Low Zio Pro Fac Was Fac Upp Upp Zhi Pro Fac Was Fac Ext Res Tes Res Gar Matter Collected 7451 | 266 523 382 791 250 . 220 30 70 . 20 778 . 270 160 20 31 49 350 . 465 77 120 70 20 110 . 849 261 60 364 636 209 Remotely . | . . . . . . . . . . . . . . . . . . . . . . . . . . . . . . . . . Salvage Created 14775 | 164 573 455 1343 319 . 585 83 80 25 93 1922 . 436 98 149 . 186 508 . 590 254 86 429 . 328 . 1537 2202 146 355 1016 813 Parts 645 | 14 44 32 78 23 . 36 4 1 1 5 50 . 16 4 1 . 4 11 . 25 6 6 1 . 30 . 79 57 10 26 46 35 Haulers Intercepted 53 | . 2 . 4 4 . 4 . . . . 10 . 2 . . . . 1 . 1 . . . . . . 9 14 1 . 1 . Recyclers Shooed 10 | . 4 . . 1 . 1 . . . . 1 . . . . . . . . 1 . . . . . . 1 . . . 1 . Parts Field Recycled . | . . . . . . . . . . . . . . . . . . . . . . . . . . . . . . . . . Retrieved Matter . | . . . . . . . . . . . . . . . . . . . . . . . . . . . . . . . . . Parts Self-Destructed 43 | . . 13 . . . . . 1 . 4 . . . 11 3 . 7 . . . . 3 1 . . . . . . . . . Prevented 1 | . . . . . . . . . . . . . . . 1 . . . . . . . . . . . . . . . . . Kills | -11 -10 -10 -8 -7 -7 -7 -7 -7 -7 -6 -6 -6 -6 -6 -6 -6 -5 -5 -5 -5 -5 -5 -5 -4 -4 -4 -4 -4 -3 -3 -2 -2 ------- Run | Jun Mat Sub Mat Fac Was Fac Low Low Dat Pro Fac Was Fac Low Low Zio Pro Fac Was Fac Upp Upp Zhi Pro Fac Was Fac Ext Res Tes Res Gar Combat Hostiles Destroyed 95 | . 11 11 17 . . 1 . . . 3 8 . 1 4 1 . 3 2 . 7 1 3 . . . . 4 3 . 2 4 9 Melee 29 | . . . 1 . . 1 . . . . 5 . . . . . 1 2 . . 1 . . . . . 2 2 . 2 4 8 Guns 28 | . 11 7 10 . . . . . . . . . . . . . . . . . . . . . . . . . . . . . Cannons 7 | . . 2 5 . . . . . . . . . . . . . . . . . . . . . . . . . . . . . AOE 21 | . . 2 . . . . . . . 3 3 . . 3 . . . . . 7 . 3 . . . . . . . . . . Classes Destroyed 23 | 3 5 3 3 1 . 1 1 1 . . . . . . 1 . 1 . . 1 . 1 . . . . 1 . . . . . Worker 12 | 1 . . 2 1 . . . . . . 1 . . . . . . . . 1 . . . . 2 . 2 . . 1 1 . Builder 40 | . 4 . 6 2 . 6 . . . . 2 . 3 . . . . . . 4 . . . . 5 . 4 . 1 1 2 . Tunneler 11 | 4 2 . 3 . . . . . . . . . . . . . . . . . . . . . 1 . . . . . 1 . Hauler 53 | . 2 . 4 4 . 4 . . . . 10 . 2 . . . . 1 . 1 . . . . . . 9 14 1 . 1 . Recycler 14 | 1 . . 1 . . 1 . . . . 4 . . . . . . 1 . 1 . . . . . . . 2 . . 3 . Minesweeper 2 | . . . . . . . . 2 . . . . . . . . . . . . . . . . . . . . . . . . Mechanic 5 | . . . . 1 . 1 . . . . . . . . . . . . . . . . . . 1 . 1 . . 1 . . Operator 7 | . 1 . 1 1 . 1 . . . . 1 . . . . . . . . . . . . . . . 1 1 . . . . Drone 1 | . . . . . . . . . . . . . . . . . . . . . . . . . . . 1 . . . . . Watcher 39 | . . . 2 1 . 4 . . . . 5 . 4 . . . . 4 . 4 . . . . 4 . 5 1 1 2 2 . Swarmer 24 | . 3 3 2 . . . . . . 3 3 . . 3 . . . . . 4 . 3 . . . . . . . . . . Grunt 31 | . 8 . 10 . . . . . . . 1 . 1 . . . 2 . . 2 . . . . . . 1 1 . 1 2 2 Brawler 1 | . . . . . . . . . . . . . . . . . . . . 1 . . . . . . . . . . . . Researcher 1 | . . . . . . . . . . . . . . . . . . . . . . 1 . . . . . . . . . . Sentry 5 | . . . 4 . . . . . . . . . . . . . . . . . . . . . . . . 1 . . . . Hunter 9 | . . . 1 . . . . . . . . . . 1 . . . 1 . . . . . . . . . . . . . 6 Programmer 12 | . . . . . . 1 . . . . 4 . 1 . . . . 2 . . . . . . . . . . . 1 3 . Behemoth 6 | . . . . . . . . . . . . . . . . . 1 . . . . . . . . . 2 2 . . . 1 Artisan 1 | . . 1 . . . . . . . . . . . . . . . . . . . . . . . . . . . . . . Cobbler 1 | . . 1 . . . . . . . . . . . . . . . . . . . . . . . . . . . . . . Subdweller 8 | . . 8 . . . . . . . . . . . . . . . . . . . . . . . . . . . . . . Decomposer 8 | . . . . . . . 1 1 . . . . . 1 5 . . . . . . . . . . . . . . . . . Packrat 3 | . . . . . . . . . . . . . . . . . . . . . 3 . . . . . . . . . . . Samaritan 1 | . . . . . . . 1 . . . . . . . . . . . . . . . . . . . . . . . . . Thug 1 | . . . . . . . . . . . . . . . . . . . . . 1 . . . . . . . . . . . Mutant 1 | . . . . . . . . . . . . . . . 1 . . . . . . . . . . . . . . . . . Best Kill Streak 9 | 4 3 2 4 2 . 2 . 1 1 3 4 . 1 3 1 . 1 3 . 9 1 3 . . 8 . 3 3 1 2 3 4 Combat Bots Only 7 | . 3 2 3 . . 1 . . . 3 4 . 1 3 1 . 1 2 . 7 1 3 . . . . 1 1 . 1 2 4 Max Kills in Single Turn 2 | 1 2 1 1 1 . 1 1 1 1 2 2 . 1 2 1 . 1 1 . 2 1 2 . . 1 . 1 1 1 1 1 1 Gunslinging 1 | . 1 . . . . . . . . . . . . . . . . . . . . . . . . . . . . . . . Exploded 2 | . . 1 . . . . . . . 2 2 . . 2 . . . . . 2 . 2 . . . . . . . . . . Melee 1 | . . . 1 . . 1 . . . . 1 . . . . . 1 1 . . 1 . . . . . 1 1 . 1 1 1 Uniques/NPCs Destroyed 2 | . . . . . . . . . 1 . . . . . . . . . . . . . . . . . . 1 . . . . Data Miner (-7/Data Miner) A7 (-4/Extension) Combat | -11 -10 -10 -8 -7 -7 -7 -7 -7 -7 -6 -6 -6 -6 -6 -6 -6 -5 -5 -5 -5 -5 -5 -5 -4 -4 -4 -4 -4 -3 -3 -2 -2 -------- Run | Jun Mat Sub Mat Fac Was Fac Low Low Dat Pro Fac Was Fac Low Low Zio Pro Fac Was Fac Upp Upp Zhi Pro Fac Was Fac Ext Res Tes Res Gar Damage Taken 10067 | . 378 784 883 14 . 112 . . 228 14 804 . 55 158 77 . 714 312 . 196 . 189 . 70 164 . 1201 589 49 70 1167 1839 Core 1460 | . 78 90 166 . . 5 . . 26 . 108 . 6 . . . 48 . . 99 . 96 . 15 73 . 232 115 . . 144 159 Absorbed by Shields 2017 | . . . 167 . . . . . . . 8 . . . . . . . . . . . . . . . . 56 . . 306 1480 Redirected to Shielding 461 | . . . . . . . . . . . . . . . . . . . . 28 . 21 . 48 . . 152 . 14 45 91 62 Regen/Repaired (Parts) 1014 | . . . 12 . . 52 . . . . 149 . . . . . . 184 . 24 . . . . . . 216 . . 6 169 202 Core Remaining (%) 77 | 100 . 32 69 . . . . . . 95 . . . . . . 80 . . . . . . 79 . . . 63 . 100 . . Volleys Fired 247 | 12 62 36 75 5 . . . . . 2 4 . 4 7 . . . . . 11 . 2 . . 2 . 3 4 . 2 9 7 Largest 2 | 2 2 2 2 1 . . . . . 1 1 . 1 1 . . . . . 1 . 1 . . 1 . 1 1 . 1 1 1 Hottest 150 | 60 60 110 103 30 . . . . . 30 30 . 90 30 . . . . . 30 . 30 . . 30 . 30 33 . 150 50 150 Shots Fired 420 | 24 124 69 140 5 . 1 . . . 2 4 . 4 7 . . . . . 11 . 2 . . 2 . 3 4 . 2 9 7 Gun 309 | 24 124 47 110 . . . . . . . . . . . . . . . . . . . . . . . . 4 . . . . Cannon 72 | . . 20 30 . . . . . . . . . 4 . . . . . . . . . . . . . . . . 2 9 7 Launcher 39 | . . 2 . 5 . 1 . . . 2 4 . . 7 . . . . . 11 . 2 . . 2 . 3 . . . . . Special . | . . . . . . . . . . . . . . . . . . . . . . . . . . . . . . . . . Kinetic 273 | 12 102 45 110 . . . . . . . . . . . . . . . . . . . . . . . . 4 . . . . Thermal 108 | 12 22 22 30 . . . . . . . . . 4 . . . . . . . . . . . . . . . . 2 9 7 Explosive 39 | . . 2 . 5 . 1 . . . 2 4 . . 7 . . . . . 11 . 2 . . 2 . 3 . . . . . Electromagnetic . | . . . . . . . . . . . . . . . . . . . . . . . . . . . . . . . . . Robot Hit Streak 16 | 5 12 8 16 . . 5 . . . . 7 . . . . . . . . 1 . . . . . . . . . . . . Robot Miss Streak 5 | 3 5 2 4 . . . . . . . . . . 1 . . . . . 2 . 1 . . . . . . . . . 4 Penetration Max . | . . . . . . . . . . . . . . . . . . . . . . . . . . . . . . . . . Secondary Targets 1 | . 1 . . . . . . . . . . . . . . . . . . . . . . . . . . . . . . . Max Gunslinging Chain 1 | . 1 . . . . . . . . . . . . . . . . . . . . . . . . . . . . . . . Shots Hit Robots 669 | 14 87 50 108 18 . 31 4 5 1 2 60 . 24 2 13 . 11 13 . 12 5 1 7 . 18 . 43 58 3 11 24 44 Core Hits 297 | 7 32 21 45 5 . 9 2 1 1 5 25 . 5 6 . . . 4 . 30 4 6 2 . 10 . 19 23 3 6 11 15 Critical Kills 5 | . . 1 2 . . . . . . . . . . . . . . 1 . 1 . . . . . . . . . . . . Critical Parts Destroyed 23 | . 1 . 1 1 . 2 . . . . 3 . 3 . 4 . 1 3 . 4 . . . . . . . . . . . . Critical Strikes 79 | . 1 1 3 2 . 3 1 . . . 7 . 4 . 4 . 1 4 . 5 . . 1 . 5 . 8 14 . 2 3 10 Meltdown 1 | . . . 1 . . . . . . . . . . . . . . . . . . . . . . . . . . . . . Destroy 3 | . . 1 2 . . . . . . . . . . . . . . . . . . . . . . . . . . . . . Smash 24 | . 1 . . 1 . 2 . . . . 3 . 3 . 4 . 1 4 . 5 . . . . . . . . . . . . Sever 14 | . . . . 1 . . . . . . . . . . . . . . . . . . . . . . . . . . 3 10 Impale 37 | . . . . . . 1 1 . . . 4 . 1 . . . . . . . . . 1 . 5 . 8 14 . 2 . . Melee Attacks 1170 | . 60 33 24 82 . 81 4 7 11 4 178 . 81 5 17 3 21 62 . 44 7 7 7 6 36 . 128 107 29 26 42 58 Impact 320 | . 54 . . 27 . 32 . . . . 51 . 37 5 11 3 8 53 . 39 . . . . . . . . . . . . Slashing 207 | . 6 33 24 42 . . . . . . . . . . . . . . . . . . . . . . . . . 3 42 57 Piercing 631 | . . . . 12 . 49 4 7 11 4 123 . 44 . . . 13 9 . 4 7 7 7 6 36 . 128 107 29 23 . 1 Sneak Attacks 173 | . 4 1 10 12 . 12 3 3 1 . 21 . 10 2 11 . . 5 . 6 3 1 . . 11 . 20 23 2 4 8 . Combat Hostiles 7 | . . . . . . . . . . . . . 2 1 . . . . . . 1 . . . . . 2 1 . . . . Follow-up Attacks 11 | . . . . . . . . . . . . . . . . . . . . . . . . . . . . 2 . 1 . 8 Damage Inflicted 34101 | 174 1440 1019 2717 1235 . 2028 327 307 90 324 3638 . 1423 413 630 . 515 927 . 2003 540 233 646 . 1389 . 3381 3139 278 893 2074 2318 Guns 2993 | 174 1053 568 1198 . . . . . . . . . . . . . . . . . . . . . . . . . . . . . Cannons 978 | . . 362 572 . . . . . . . . . . . . . . . . . . . . . . . . . . . . 44 Explosions 1979 | . . 89 . . . 41 . . . 156 328 . . 193 . . . . . 1091 . 81 . . . . . . . . . . Melee 28046 | . 382 . 942 1235 . 1987 327 307 90 168 3310 . 1423 220 630 . 515 927 . 912 540 152 646 . 1389 . 3381 3139 278 893 1979 2274 Ramming 105 | . 5 . 5 . . . . . . . . . . . . . . . . . . . . . . . . . . . 95 . Kinetic 2728 | 91 891 548 1198 . . . . . . . . . . . . . . . . . . . . . . . . . . . . . Thermal 1243 | 83 162 382 572 . . . . . . . . . . . . . . . . . . . . . . . . . . . . 44 Explosive 1751 | . . 89 . . . 41 . . . 156 328 . . 193 . . . . . 863 . 81 . . . . . . . . . . Electromagnetic 228 | . . . . . . . . . . . . . . . . . . . . 228 . . . . . . . . . . . . Impact 6481 | . 334 . . 462 . 968 . . . . 1402 . 651 220 630 . 267 635 . 912 . . . . . . . . . . . . Slashing 6173 | . 48 . 942 710 . . . . . . . . . . . . . . . . . . . . . . . . . 220 1979 2274 Piercing 15392 | . . . . 63 . 1019 327 307 90 168 1908 . 772 . . . 248 292 . . 540 152 646 . 1389 . 3381 3139 278 673 . . Highest Corruption 9 | . . . 1 . 6 6 . . . . 2 . . . 1 1 . 6 1 1 . . . . . . 9 . . 1 7 7 Average Corruption 3 | . . . 1 . 6 4 . . . . 1 . . . 1 1 . 4 1 1 . . . . . . 4 . . 1 4 7 Corruption Purged 29 | . . . . . . 7 . . . . 4 . . . . . . 5 . 1 . . . . . . 11 . . 1 . . Corruption Blocked 16 | . . . . . . . . . . . 1 . . . . . . . . . . . . . . . . . . 15 . . Effects 90 | . . . 8 . . 15 . . . . 12 . . . . . . 16 . 2 . . . . . . 17 . . 3 7 10 Message Errors 29 | . . . 3 . . 7 . . . . 2 . . . . . . 4 . . . . . . . . 5 . . . 3 5 Matter Fused 18 | . . . 1 . . 4 . . . . 2 . . . . . . 6 . . . . . . . . 3 . . . . 2 Heat Flow Errors 13 | . . . 1 . . 1 . . . . 2 . . . . . . . . 2 . . . . . . 3 . . 2 1 1 Energy Discharges 11 | . . . . . . 1 . . . . 2 . . . . . . 3 . . . . . . . . 2 . . . 1 2 Parts Rejected 2 | . . . . . . . . . . . . . . . . . . . . . . . . . . . . . . . 2 . Parts Fused 1 | . . . 1 . . . . . . . . . . . . . . . . . . . . . . . . . . . . . Data Loss (minor) 7 | . . . . . . 1 . . . . 1 . . . . . . 3 . . . . . . . . 1 . . 1 . . Data Loss (major) 5 | . . . . . . . . . . . 3 . . . . . . . . . . . . . . . 2 . . . . . Misfires 2 | . . . 1 . . 1 . . . . . . . . . . . . . . . . . . . . . . . . . . Alerts 2 | . . . 1 . . . . . . . . . . . . . . . . . . . . . . . 1 . . . . . Overload Shots 3 | . . . . . . . . . . . . . . . . . . . . . . . . . . . . . . 2 . 1 Effects 1 | . . . . . . . . . . . . . . . . . . . . . . . . . . . . . . . . 1 Energy Bleed 1 | . . . . . . . . . . . . . . . . . . . . . . . . . . . . . . . . 1 Overflow Damage 7815 | . 183 . 194 363 . 591 59 157 . . 949 . 423 193 517 . 117 459 . 547 120 92 564 . 353 . 878 384 . 137 479 56 Projectiles 22 | . . . . . . . . . . . 22 . . . . . . . . . . . . . . . . . . . . . Explosions 29 | . . . . . . . . . . . 15 . . . . . . . . 14 . . . . . . . . . . . . Melee 7764 | . 183 . 194 363 . 591 59 157 . . 912 . 423 193 517 . 117 459 . 533 120 92 564 . 353 . 878 384 . 137 479 56 Knockbacks 22 | . 3 . . 1 . . . . . . 6 . 2 1 . . 3 2 . 3 . . . . . . . . . . 1 . Impact 21 | . 3 . . 1 . . . . . . 5 . 2 1 . . 3 2 . 3 . . . . . . . . . . 1 . Kinetic . | . . . . . . . . . . . . . . . . . . . . . . . . . . . . . . . . . Secondary 1 | . . . . . . . . . . . 1 . . . . . . . . . . . . . . . . . . . . . Self-Inflicted Damage 322 | . . 20 2 . . 27 . . . . 35 . . 83 . . . . . 35 . 48 . . . . 26 . . . 46 . Shots 10 | . . 1 . . . 1 . . . . 1 . . 4 . . . . . 1 . 1 . . . . 1 . . . . . Rammed 8 | . 2 . 2 . . . . . . . . . . . . . . . . . . . . . . . . . . . 4 . Targets Rammed 8 | . 2 . 2 . . . . . . . . . . . . . . . . . . . . . . . . . . . 4 . Kicked . | . . . . . . . . . . . . . . . . . . . . . . . . . . . . . . . . . Crushed . | . . . . . . . . . . . . . . . . . . . . . . . . . . . . . . . . . Highest Temperature 279 | . 72 2 119 64 38 128 . . 30 3 247 3 112 11 6 3 24 76 100 279 64 180 94 185 197 . 260 77 . 263 233 116 Average Temperature 22 | . 26 2 22 28 18 32 . . 17 2 9 2 13 2 2 2 2 15 44 51 13 45 48 81 112 . 75 50 . 90 78 70 Received Heat Transfer 1557 | . 195 102 441 . . 6 . . . . 90 . 6 12 . . 117 . . 18 . 12 . 9 9 . 250 95 12 9 100 74 Effects 3 | . . . . . . . . . . . 3 . . . . . . . . . . . . . . . . . . . . . Energy Bleed 1 | . . . . . . . . . . . 1 . . . . . . . . . . . . . . . . . . . . . Interference 2 | . . . . . . . . . . . 2 . . . . . . . . . . . . . . . . . . . . . Siege Activations . | . . . . . . . . . . . . . . . . . . . . . . . . . . . . . . . . . Robots Corrupted . | . . . . . . . . . . . . . . . . . . . . . . . . . . . . . . . . . Combat Hostiles . | . . . . . . . . . . . . . . . . . . . . . . . . . . . . . . . . . Parts Fried 53 | . 2 . . 3 . 9 . . . . 14 . 5 1 2 . 1 8 . 8 . . . . . . . . . . . . Impact Corruptions 116 | . 7 . . 8 . 10 . . . . 27 . 10 4 16 . 4 13 . 17 . . . . . . . . . . . . Robots Melted 1 | . . . 1 . . . . . . . . . . . . . . . . . . . . . . . . . . . . . Combat Hostiles 1 | . . . 1 . . . . . . . . . . . . . . . . . . . . . . . . . . . . . Parts Melted 7 | . . 3 4 . . . . . . . . . . . . . . . . . . . . . . . . . . . . . Heat Transferred 1851 | 200 350 506 777 . . . . . . . . . . . . . . . . . . . . . . . . . . . . 18 Parts Sabotaged . | . . . . . . . . . . . . . . . . . . . . . . . . . . . . . . . . . Parts Stolen . | . . . . . . . . . . . . . . . . . . . . . . . . . . . . . . . . . Parts Stripped . | . . . . . . . . . . . . . . . . . . . . . . . . . . . . . . . . . Power Chain Reactions . | . . . . . . . . . . . . . . . . . . . . . . . . . . . . . . . . . Missiles Intercepted . | . . . . . . . . . . . . . . . . . . . . . . . . . . . . . . . . . Alert | -11 -10 -10 -8 -7 -7 -7 -7 -7 -7 -6 -6 -6 -6 -6 -6 -6 -5 -5 -5 -5 -5 -5 -5 -4 -4 -4 -4 -4 -3 -3 -2 -2 ------- Run | Jun Mat Sub Mat Fac Was Fac Low Low Dat Pro Fac Was Fac Low Low Zio Pro Fac Was Fac Upp Upp Zhi Pro Fac Was Fac Ext Res Tes Res Gar Peak Influence 806 | 30 268 . 256 468 208 387 . . . . 527 214 295 . . . . 175 85 539 . . . . 289 60 245 806 662 494 460 651 Initial 423 | . 19 . . 50 163 131 . . . . 44 184 149 . . . . 70 40 59 . . . . 28 30 52 50 423 285 148 345 Average 196 | 11 90 . 119 181 177 155 . . . . 208 198 130 . . . . 77 58 180 . . . . 175 34 86 544 516 362 252 474 Maximum Alert Level 3 | . 1 . 1 2 1 1 . . . . 2 1 1 . . . . . . 2 . . . . 1 . 1 3 2 2 2 2 Low Security (%) 65 | 100 92 . 92 60 93 64 . . . . 52 59 82 . . . . 100 100 70 . . . . 55 100 96 5 . . 37 . Level 1 19 | . 7 . 7 29 6 35 . . . . 31 40 17 . . . . . . 18 . . . . 44 . 3 8 . 70 53 28 Level 2 14 | . . . . 9 . . . . . . 15 . . . . . . . . 11 . . . . . . . 74 100 29 9 71 Level 3 . | . . . . . . . . . . . . . . . . . . . . . . . . . . . . 11 . . . . Level 4 . | . . . . . . . . . . . . . . . . . . . . . . . . . . . . . . . . . Level 5 . | . . . . . . . . . . . . . . . . . . . . . . . . . . . . . . . . . High Security . | . . . . . . . . . . . . . . . . . . . . . . . . . . . . . . . . . Max Security . | . . . . . . . . . . . . . . . . . . . . . . . . . . . . . . . . . Squads Dispatched 55 | . 1 . 1 5 . 7 . . . . 8 . 7 . . . . 3 . 4 . . . . 2 . 8 2 1 2 4 . Investigation 15 | . . . . 1 . 2 . . . . 2 . 3 . . . . 1 . 1 . . . . . . 3 . 1 . 1 . Extermination 14 | . . . . 1 . 2 . . . . 4 . 1 . . . . 1 . . . . . . 1 . 2 . . . 2 . Reinforcement 21 | . 1 . . 2 . 2 . . . . 2 . 3 . . . . 1 . 3 . . . . 1 . 3 . . 2 1 . Assault 4 | . . . . 1 . 1 . . . . . . . . . . . . . . . . . . . . . 2 . . . . Garrison 1 | . . . 1 . . . . . . . . . . . . . . . . . . . . . . . . . . . . . Intercept . | . . . . . . . . . . . . . . . . . . . . . . . . . . . . . . . . . Searches Triggered 1 | . . . . . . . . . . . . . . . . . . . . . . . . . . . . . . 1 . . Construction Impeded 2 | . . . . . . . . . . . . . . . . . . . . 2 . . . . . . . . . . . . Haulers Reinforced 4 | . . . . 1 . . . . . . 2 . 1 . . . . . . . . . . . . . . . . . . . Active Scanning Responses . | . . . . . . . . . . . . . . . . . . . . . . . . . . . . . . . . . Cargo Convoy Interrupts . | . . . . . . . . . . . . . . . . . . . . . . . . . . . . . . . . . Stealth | -11 -10 -10 -8 -7 -7 -7 -7 -7 -7 -6 -6 -6 -6 -6 -6 -6 -5 -5 -5 -5 -5 -5 -5 -4 -4 -4 -4 -4 -3 -3 -2 -2 --------- Run | Jun Mat Sub Mat Fac Was Fac Low Low Dat Pro Fac Was Fac Low Low Zio Pro Fac Was Fac Upp Upp Zhi Pro Fac Was Fac Ext Res Tes Res Gar Distress Signals 32 | . 3 . 2 1 . . . . . . 6 . 2 . . . . 4 . 1 . . . . 2 . 7 1 2 1 . . Communications Jammed 30 | . . . . 6 . 1 . . . . . . . . . . . 9 . 2 . . . . . . 2 . . . 10 . Distress Signals 19 | . . . . 6 . . . . . . . . . . . . . 9 . 2 . . . . . . . . . . 2 . Times Spotted 463 | . 31 11 28 17 5 11 . . 4 4 45 3 22 5 2 . 9 19 4 25 . 7 . 6 10 4 73 28 11 16 44 19 Peak Tracking Total 12 | . 5 3 6 4 5 3 . . 4 4 6 3 4 3 3 . 3 4 4 6 . 4 . 8 5 4 10 5 7 4 12 7 Tactical Retreats 80 | . . 1 . 4 . . . . . . 15 . 7 3 . . . 4 . 4 . 2 . 1 5 . 22 1 . 3 7 1 Traps | -11 -10 -10 -8 -7 -7 -7 -7 -7 -7 -6 -6 -6 -6 -6 -6 -6 -5 -5 -5 -5 -5 -5 -5 -4 -4 -4 -4 -4 -3 -3 -2 -2 ------- Run | Jun Mat Sub Mat Fac Was Fac Low Low Dat Pro Fac Was Fac Low Low Zio Pro Fac Was Fac Upp Upp Zhi Pro Fac Was Fac Ext Res Tes Res Gar Traps Triggered 22 | . . 1 1 1 . 1 . . . . 8 . 1 . . . . 2 . . . . . . 1 . 2 4 . . . . Indirectly . | . . . . . . . . . . . . . . . . . . . . . . . . . . . . . . . . . Trap Hack Attempts 67 | . . . . 11 . . . . . . 18 . . . . . . . . 38 . . . . . . . . . . . . Triggered . | . . . . . . . . . . . . . . . . . . . . . . . . . . . . . . . . . Disarmed . | . . . . . . . . . . . . . . . . . . . . . . . . . . . . . . . . . Reprogrammed 13 | . . . . 3 . . . . . . 4 . . . . . . . . 6 . . . . . . . . . . . . Reused 8 | . . . . 2 . . . . . . 6 . . . . . . . . . . . . . . . . . . . . . Traps Extracted 17 | . . . . . . . . 6 . . 5 . . . . . . . . 6 . . . . . . . . . . . . Installed 13 | . . . . . . . . 6 . . 7 . . . . . . . . . . . . . . . . . . . . . Triggered 12 | . . 1 . 2 . . . 1 . . 6 . . . 1 . 1 . . . . . . . . . . . . . . . Most Traps Carried 6 | . . . . . . . . 6 6 6 6 . . . . . . . . 6 6 6 6 6 6 6 6 6 6 6 . . Machines | -11 -10 -10 -8 -7 -7 -7 -7 -7 -7 -6 -6 -6 -6 -6 -6 -6 -5 -5 -5 -5 -5 -5 -5 -4 -4 -4 -4 -4 -3 -3 -2 -2 ---------- Run | Jun Mat Sub Mat Fac Was Fac Low Low Dat Pro Fac Was Fac Low Low Zio Pro Fac Was Fac Upp Upp Zhi Pro Fac Was Fac Ext Res Tes Res Gar Machines Disabled 38 | . . 1 . 3 . 1 . . 1 . 3 . . . 1 . . . . 9 . 1 . . 1 . 1 10 . 4 . 2 Max in Single Turn 9 | . . 1 . 1 . 1 . . 1 . 1 . . . 1 . . . . 9 . 1 . . . . . 1 . 1 . 1 Garrison Access 28 | . . . 1 3 . 3 . . . . 4 . 4 . . . . 3 . 4 . . . . 1 . 4 . . 1 . . Garrison Relay 1 | . . . . . . . . . . . . . . . . . . . . . . . . . . . . . . . . 1 Machines Repaired . | . . . . . . . . . . . . . . . . . . . . . . . . . . . . . . . . . Machines Sabotaged . | . . . . . . . . . . . . . . . . . . . . . . . . . . . . . . . . . Overloaded Fab Kills . | . . . . . . . . . . . . . . . . . . . . . . . . . . . . . . . . . Hacking | -11 -10 -10 -8 -7 -7 -7 -7 -7 -7 -6 -6 -6 -6 -6 -6 -6 -5 -5 -5 -5 -5 -5 -5 -4 -4 -4 -4 -4 -3 -3 -2 -2 --------- Run | Jun Mat Sub Mat Fac Was Fac Low Low Dat Pro Fac Was Fac Low Low Zio Pro Fac Was Fac Upp Upp Zhi Pro Fac Was Fac Ext Res Tes Res Gar Machines Accessed 227 | . 7 1 8 25 . 22 1 1 4 . 33 . 18 . 1 . . 25 . 24 . 1 6 . 7 . 30 . 6 1 5 1 Terminals 106 | . 5 . 5 8 . 12 . . . . 15 . 11 . . . . 12 . 12 . . . . 4 . 14 . 4 . 3 1 Fabricators 24 | . . . . 5 . 3 . . . . 2 . 1 . . . . 4 . 3 . . . . 1 . 4 . 1 . . . Repair Stations 19 | . . . 1 3 . 2 . . . . 5 . . . . . . 3 . 1 . . . . 1 . 2 . 1 . . . Recycling Units 27 | . 2 . 1 5 . 2 . . . . 5 . 2 . . . . 2 . 4 . . . . . . 4 . . . . . Scanalyzers 7 | . . . . 1 . . . . . . 2 . . . . . . 1 . . . . . . . . 2 . . . 1 . Garrison Access 29 | . . . 1 3 . 3 . . . . 4 . 4 . . . . 3 . 4 . . . . 1 . 4 . . 1 1 . Total Hacks 707 | . 20 9 27 51 . 51 1 1 28 . 80 . 58 . 1 . . 83 . 76 . 1 19 . 32 . 135 . 16 1 12 5 Successful 464 | . 12 9 12 25 . 25 1 1 28 . 44 . 41 . 1 . . 52 . 58 . 1 19 . 14 . 104 . 6 1 7 3 Failed 242 | . 8 . 15 26 . 26 . . . . 36 . 16 . . . . 31 . 18 . . . . 18 . 31 . 10 . 5 2 Catastrophic 29 | . 1 . 1 3 . 5 . . . . 4 . 3 . . . . 3 . 1 . . . . 2 . . . 4 . 2 . Database Lockouts 1 | . . . . . . . . . . . . . 1 . . . . . . . . . . . . . . . . . . . Manual 317 | . 11 . 12 22 . 27 . . . . 35 . 32 . . . . 39 . 47 . . . . 14 . 67 . 3 . 5 3 Terminals 344 | . 13 . 22 16 . 26 . . . . 37 . 38 . . . . 39 . 41 . . . . 19 . 73 . 9 . 6 5 Fabricators 68 | . . . . 10 . 5 . . . . 3 . 7 . . . . 14 . 11 . . . . 2 . 14 . 2 . . . Repair Stations 67 | . . . 2 6 . 4 . . . . 12 . . . . . . 14 . 2 . . . . 10 . 12 . 5 . . . Recycling Units 94 | . 7 . 2 13 . 6 . . . . 18 . 6 . . . . 7 . 17 . . . . . . 18 . . . . . Scanalyzers 27 | . . . . 2 . . . . . . 3 . . . . . . 4 . . . . . . . . 14 . . . 4 . Garrison Access 47 | . . . 1 4 . 10 . . . . 7 . 7 . . . . 5 . 5 . . . . 1 . 4 . . 1 2 . Terminal Hacks 172 | . 6 9 7 2 . 7 1 1 28 . 7 . 13 . 1 . . 11 . 18 . 1 19 . 5 . 30 . 3 . 1 2 Record 28 | . . 8 1 . . . . . 11 . . . . . . . . . . . . 1 7 . . . . . . . . . Part Schematic 23 | . . . . . . . . . 11 . 2 . 1 . . . . 3 . 2 . . 4 . . . . . . . . . Robot Schematic 3 | . . . . . . . . . 3 . . . . . . . . . . . . . . . . . . . . . . . Robot Analysis 10 | . 3 . . . . . . . . . . . . . . . . 2 . . . . 4 . . . 1 . . . . . Prototype ID Bank 21 | . 2 . . . . . . . 3 . . . 3 . . . . 1 . 5 . . 4 . . . 2 . 1 . . . Open Door 4 | . . . . . . . 1 1 . . . . . . 1 . . . . . . . . . 1 . . . . . . . Open DSF 1 | . . . . . . . . . . . . . . . . . . . . . . . . . . . . . . . 1 . Level Access Points 3 | . . . . . . 1 . . . . . . . . . . . . . 1 . . . . . . 1 . . . . . Branch Access Points 8 | . . . 1 1 . 1 . . . . . . 1 . . . . 1 . 1 . . . . . . 1 . 1 . . . Emergency Access Points 2 | . . . . . . . . . . . . . 1 . . . . . . . . . . . . . . . . . . 1 Machine Index 3 | . . . . . . . . . . . . . 1 . . . . . . . . . . . 1 . . . 1 . . . Terminal Index 6 | . 1 . 1 . . 1 . . . . . . . . . . . 1 . 1 . . . . . . 1 . . . . . Fabricator Index 1 | . . . . . . . . . . . . . . . . . . . . 1 . . . . . . . . . . . . Repair Station Index 2 | . . . . . . . . . . . . . . . . . . . . 1 . . . . . . 1 . . . . . Scanalyzer Index 1 | . . . . . . . . . . . . . . . . . . . . . . . . . . . 1 . . . . . Garrison Index 3 | . . . . . . . . . . . . . . . . . . 1 . 1 . . . . . . 1 . . . . . Alert Level 4 | . . . . . . . . . . . . . 2 . . . . . . . . . . . . . 2 . . . . . Unreport Threat 3 | . . . . . . 1 . . . . . . . . . . . . . . . . . . . . 2 . . . . . Locate Traps 11 | . . . 3 1 . . . . . . 1 . 1 . . . . . . 1 . . . . 1 . 3 . . . . . Maintenance Status 2 | . . . . . . 1 . . . . . . . . . . . . . . . . . . . . 1 . . . . . Security Status 1 | . . . . . . . . . . . . . . . . . . . . . . . . . 1 . . . . . . . Patrol Status 3 | . . . . . . . . . . . . . . . . . . . . 1 . . . . 1 . 1 . . . . . Transport Status 1 | . . . . . . . . . . . . . . . . . . . . . . . . . . . 1 . . . . . Recall Investigation 1 | . . . . . . . . . . . . . 1 . . . . . . . . . . . . . . . . . . . Recall Extermination 5 | . . . . . . 1 . . . . 1 . 1 . . . . . . . . . . . . . 2 . . . . . Recall Reinforcements 3 | . . . . . . . . . . . 1 . . . . . . . . 1 . . . . . . 1 . . . . . Hauler Manifests 12 | . . . 1 . . 1 . . . . 2 . 1 . . . . 1 . 1 . . . . . . 5 . . . . . Registered Components 1 | . . . . . . . . . . . . . . . . . . . . . . . . . . . 1 . . . . . Zone Layout 5 | . . . . . . . . . . . . . . . . . . 1 . 1 . . . . . . 2 . . . . 1 Derelict Proto ID Bank 1 | . . 1 . . . . . . . . . . . . . . . . . . . . . . . . . . . . . . Fabricator Hacks 23 | . . . . 2 . . . . . . 2 . 2 . . . . 5 . 3 . . . . 1 . 6 . 2 . . . Network Status 5 | . . . . 1 . . . . . . . . . . . . . 2 . 1 . . . . 1 . . . . . . . Load Schematic 8 | . . . . . . . . . . . 1 . 1 . . . . 1 . 1 . . . . . . 3 . 1 . . . Build 10 | . . . . 1 . . . . . . 1 . 1 . . . . 2 . 1 . . . . . . 3 . 1 . . . Repair Station Hacks 47 | . . . 2 3 . 4 . . . . 10 . . . . . . 12 . 2 . . . . 1 . 12 . 1 . . . Scan Component 25 | . . . 1 2 . 2 . . . . 5 . . . . . . 6 . 1 . . . . 1 . 6 . 1 . . . Repair 22 | . . . 1 1 . 2 . . . . 5 . . . . . . 6 . 1 . . . . . . 6 . . . . . Recycling Unit Hacks 24 | . 2 . . 4 . 2 . . . . 4 . 2 . . . . 2 . 4 . . . . . . 4 . . . . . Retrieve Components 24 | . 2 . . 4 . 2 . . . . 4 . 2 . . . . 2 . 4 . . . . . . 4 . . . . . Scanalyzer 25 | . . . . 2 . . . . . . 3 . . . . . . 2 . . . . . . . . 14 . . . 4 . Insert Component 13 | . . . . 1 . . . . . . 2 . . . . . . 1 . . . . . . . . 7 . . . 2 . Analyze 12 | . . . . 1 . . . . . . 1 . . . . . . 1 . . . . . . . . 7 . . . 2 . Garrison Access Hacks 27 | . . . 1 2 . 2 . . . . 4 . 4 . . . . 3 . 4 . . . . 1 . 4 . . 1 1 . Unlock Access 1 | . . . . . . . . . . . . . . . . . . . . . . . . . . . . . . . 1 . Seal Access 26 | . . . 1 2 . 2 . . . . 4 . 4 . . . . 3 . 4 . . . . 1 . 4 . . 1 . . Unauthorized Hacks 145 | . 4 . 2 10 . 10 . . . . 14 . 20 . . . . 17 . 26 . . . . 6 . 34 . . . 1 1 Terminals 76 | . 1 . 2 4 . 6 . . . . 7 . 12 . . . . 7 . 12 . . . . 5 . 18 . . . 1 1 Track 12 | . . . . . . . . . . . . . 3 . . . . . . 2 . . . . . . 5 . . . 1 1 Assimilate 27 | . . . 2 1 . 3 . . . . 5 . 4 . . . . 2 . 5 . . . . 2 . 3 . . . . . Botnet 29 | . 1 . . 2 . 2 . . . . 2 . 4 . . . . 4 . 4 . . . . 1 . 9 . . . . . Operators 8 | . . . . 1 . 1 . . . . . . 1 . . . . 1 . 1 . . . . 2 . 1 . . . . . Fabricators 27 | . . . . 4 . 1 . . . . . . 5 . . . . 6 . 4 . . . . 1 . 6 . . . . . Report 2 | . . . . . . . . . . . . . 1 . . . . 1 . . . . . . . . . . . . . . Prioritize 4 | . . . . . . . . . . . . . 1 . . . . . . 1 . . . . . . 2 . . . . . Liberate 7 | . . . . 2 . . . . . . . . 1 . . . . 2 . 1 . . . . . . 1 . . . . . Fabnet 13 | . . . . 2 . 1 . . . . . . 1 . . . . 3 . 2 . . . . 1 . 3 . . . . . Haulers 1 | . . . . . . . . . . . . . 1 . . . . . . . . . . . . . . . . . . . Repair Stations . | . . . . . . . . . . . . . . . . . . . . . . . . . . . . . . . . . Recycling Units 42 | . 3 . . 2 . 3 . . . . 7 . 3 . . . . 4 . 10 . . . . . . 10 . . . . . Reject 20 | . 2 . . 2 . 1 . . . . 3 . 2 . . . . 2 . 4 . . . . . . 4 . . . . . Recyclers 9 | . 1 . . . . 1 . . . . 2 . . . . . . 1 . 2 . . . . . . 2 . . . . . Mask 13 | . . . . . . 1 . . . . 2 . 1 . . . . 1 . 4 . . . . . . 4 . . . . . Scanalyzers . | . . . . . . . . . . . . . . . . . . . . . . . . . . . . . . . . . Garrison Access . | . . . . . . . . . . . . . . . . . . . . . . . . . . . . . . . . . Data Cores Recovered 1 | . . . 1 . . . . . . . . . . . . . . . . . . . . . . . . . . . . . Used . | . . . . . . . . . . . . . . . . . . . . . . . . . . . . . . . . . Hacking Detections 160 | . 6 . 6 22 . 20 . . . . 27 . 11 . . . . 18 . 17 . . . . 4 . 19 . 6 . 3 1 Full Trace Events 15 | . . . . 1 . 2 . . . . 2 . 3 . . . . 1 . 1 . . . . . . 3 . 1 . 1 . Feedback Events . | . . . . . . . . . . . . . . . . . . . . . . . . . . . . . . . . . Feedback Blocked . | . . . . . . . . . . . . . . . . . . . . . . . . . . . . . . . . . Robot Schematics Acquired 3 | . . . . . . . . . 3 . . . . . . . . . . . . . . . . . . . . . . . Robots Built . | . . . . . . . . . . . . . . . . . . . . . . . . . . . . . . . . . Authchips . | . . . . . . . . . . . . . . . . . . . . . . . . . . . . . . . . . Time . | . . . . . . . . . . . . . . . . . . . . . . . . . . . . . . . . . Total Robot Build Rating . | . . . . . . . . . . . . . . . . . . . . . . . . . . . . . . . . . Part Schematics Acquired 34 | . . . . 1 . . . . 11 . 3 . 1 . . . . 4 . 2 . . 4 . . . 6 . . . 2 . Parts Built 13 | . . . . 2 . . . . . . 1 . 2 . . . . 2 . 1 . . . . . . 4 . 1 . . . Authchips 1 | . . . . . . . . . . . 1 . . . . . . . . . . . . . . . . . . . . . Time 531 | . . . . 47 . . . . . . 42 . 53 . . . . 191 . 32 . . . . . . 127 . 39 . . . Total Part Build Rating 75 | . . . . 10 . . . . . . 4 . 12 . . . . 12 . 8 . . . . . . 22 . 7 . . . Parts Repaired 22 | . . . 1 1 . 2 . . . . 5 . . . . . . 6 . 1 . . . . . . 6 . . . . . Time 926 | . . . 53 44 . 88 . . . . 132 . . . . . . 143 . 62 . . . . . . 404 . . . . . Parts Recycled . | . . . . . . . . . . . . . . . . . . . . . . . . . . . . . . . . . Recycled Matter . | . . . . . . . . . . . . . . . . . . . . . . . . . . . . . . . . . Retrieved Matter . | . . . . . . . . . . . . . . . . . . . . . . . . . . . . . . . . . Retrieved Components 80 | . 19 . . 7 . 13 . . . . 24 . . . . . . 4 . 6 . . . . . . 7 . . . . . Parts Scanalyzed 11 | . . . . 1 . . . . . . 1 . . . . . . 1 . . . . . . . . 6 . . . 2 . Part Schematics Acquired 11 | . . . . 1 . . . . . . 1 . . . . . . 1 . . . . . . . . 6 . . . 2 . Parts Damaged 3 | . . . . 1 . . . . . . . . . . . . . . . . . . . . . . 2 . . . . . Bothacking | -11 -10 -10 -8 -7 -7 -7 -7 -7 -7 -6 -6 -6 -6 -6 -6 -6 -5 -5 -5 -5 -5 -5 -5 -4 -4 -4 -4 -4 -3 -3 -2 -2 ------------ Run | Jun Mat Sub Mat Fac Was Fac Low Low Dat Pro Fac Was Fac Low Low Zio Pro Fac Was Fac Upp Upp Zhi Pro Fac Was Fac Ext Res Tes Res Gar Used RIF Installer . | . . . . . . . . . . . . . . . . . . . . . . . . . . . . . . . . . Robots Hacked 36 | . . . . 1 . . . . . . 3 . 3 3 1 . 1 1 . 2 . . . 2 2 . 5 8 1 2 1 . Non-combat 5 | . . . . 1 . . . . . . 3 . . . . . . . . 1 . . . . . . . . . . . . Combat 31 | . . . . . . . . . . . . . 3 3 1 . 1 1 . 1 . . . 2 2 . 5 8 1 2 1 . Robot Hacks Applied 5 | . . . . 1 . . . . . . 3 . . . . . . . . 1 . . . . . . . . . . . . no_distress 2 | . . . . . . . . . . . 2 . . . . . . . . . . . . . . . . . . . . . find_chute 2 | . . . . 1 . . . . . . 1 . . . . . . . . . . . . . . . . . . . . . find_recycling 1 | . . . . . . . . . . . . . . . . . . . . 1 . . . . . . . . . . . . Relay Couplers Released 11 | . . . . 2 . 2 . . . . 2 . . . . . . . . . . . . . . . . . . . . 5 Machine Destruction 11 | . . . . 2 . 2 . . . . 2 . . . . . . . . . . . . . . . . . . . . 5 Fabnet Peak Effective % 15 | . . . . . . . . . . 9 9 9 9 9 9 9 6 6 6 6 6 6 6 15 15 15 15 15 15 15 4 4 Autooverrided 31 | . . . . . . . . . . . . . 3 3 1 . 1 1 . 1 . . . 2 2 . 5 8 1 2 1 . Robots Rewired 4 | . . . . . . . . . . . . . . . 4 . . . . . . . . . . . . . . . . . Allies Hacked 5 | . . . . 1 . . . . . . 2 . . . . . . 1 . . . . . . . . . 1 . . . . Hacks Repelled 1 | . . . . . . . . . . . . . . . . . . . . . . . . . . . . 1 . . . . Allies | -11 -10 -10 -8 -7 -7 -7 -7 -7 -7 -6 -6 -6 -6 -6 -6 -6 -5 -5 -5 -5 -5 -5 -5 -4 -4 -4 -4 -4 -3 -3 -2 -2 -------- Run | Jun Mat Sub Mat Fac Was Fac Low Low Dat Pro Fac Was Fac Low Low Zio Pro Fac Was Fac Upp Upp Zhi Pro Fac Was Fac Ext Res Tes Res Gar Total Allies 76 | . . . 1 1 1 2 . . . . 4 . 7 3 5 . 1 6 . 6 . . . 2 3 1 9 20 1 2 1 . Largest Group 12 | . . . 1 2 1 2 . . . . 2 . 3 2 4 4 4 4 . 3 . . . 2 2 1 3 12 1 2 1 . Highest-Rated Group 508 | . . . 10 36 31 52 . . . . 52 . 73 58 113 113 113 100 . 30 . . . 94 142 26 108 508 56 129 82 . Highest-Rated Ally 159 | . . . 10 26 31 26 . . . . 26 . 37 41 31 31 47 41 . 29 . . . 47 116 26 56 159 56 82 82 . Total Orders 10 | . . . . 2 . . . . . . 2 . 2 . . . . . . 4 . . . . . . . . . . . . STAY 6 | . . . . 1 . . . . . . 1 . 2 . . . . . . 2 . . . . . . . . . . . . FOLLOW 4 | . . . . 1 . . . . . . 1 . . . . . . . . 2 . . . . . . . . . . . . Ally Attacks 276 | . . . . . 10 . . . . . . . 8 9 2 . 38 15 . 3 . . . 4 5 . 15 154 4 6 3 . Total Damage 7338 | . . . . . 147 . . . . . . . 55 223 17 . 800 396 . 38 . . . 132 30 . 363 4822 153 133 29 . Kills 42 | . . . . . . . . . . . . . . 1 . . 4 4 . . . . . . . . . 32 1 . . . Allies Corrupted 3 | . . . . . . . . . . . . . 1 . . . . 1 . . . . . . . . . 1 . . . . Allies Melted 3 | . . . . . . . . . . . . . . . . . 1 1 . . . . . 1 . . . . . . . . Intel | -11 -10 -10 -8 -7 -7 -7 -7 -7 -7 -6 -6 -6 -6 -6 -6 -6 -5 -5 -5 -5 -5 -5 -5 -4 -4 -4 -4 -4 -3 -3 -2 -2 ------- Run | Jun Mat Sub Mat Fac Was Fac Low Low Dat Pro Fac Was Fac Low Low Zio Pro Fac Was Fac Upp Upp Zhi Pro Fac Was Fac Ext Res Tes Res Gar Robot Analysis Total 10 | . 3 . . . . . . . . . . . . . . . . 2 . . . . 4 . . . 1 . . . . . Derelict Logs Recovered 19 | . . . . . . . 3 2 . 1 . . . 2 3 1 3 . . . 2 1 . 1 . . . . . . . . Drone Launches . | . . . . . . . . . . . . . . . . . . . . . . . . . . . . . . . . . Drone Recoveries . | . . . . . . . . . . . . . . . . . . . . . . . . . . . . . . . . . Exploration | -11 -10 -10 -8 -7 -7 -7 -7 -7 -7 -6 -6 -6 -6 -6 -6 -6 -5 -5 -5 -5 -5 -5 -5 -4 -4 -4 -4 -4 -3 -3 -2 -2 ------------- Run | Jun Mat Sub Mat Fac Was Fac Low Low Dat Pro Fac Was Fac Low Low Zio Pro Fac Was Fac Upp Upp Zhi Pro Fac Was Fac Ext Res Tes Res Gar Turns Passed 24592 | 109 1777 1752 1682 1529 32 1373 352 313 71 205 2944 32 1230 358 408 515 226 1471 18 1103 367 242 86 79 432 13 2272 1558 445 502 691 405 Spaces Moved 38857 | 39 788 935 1270 3136 90 2475 971 796 109 552 5459 107 2746 854 852 1056 450 1966 66 2332 889 600 189 276 885 62 4411 1653 849 717 1095 182 Core . | . . . . . . . . . . . . . . . . . . . . . . . . . . . . . . . . . Treads 1868 | 39 788 935 106 . . . . . . . . . . . . . . . . . . . . . . . . . . . . . Legs 157 | . . . . . . . . . . . . . . . . . . . . . . . . . . . . . . . . 157 Wheels 477 | . . . 477 . . . . . . . . . . . . . . . . . . . . . . . . . . . . . Hover 475 | . . . . . . . . . . . . . . . . . . . . . . . . . . . . . . . 450 25 Flight 35880 | . . . 687 3136 90 2475 971 796 109 552 5459 107 2746 854 852 1056 450 1966 66 2332 889 600 189 276 885 62 4411 1653 849 717 645 . Fastest Speed 6 | 160 160 160 40 30 30 30 34 34 30 34 24 30 24 24 24 30 24 6 6 6 6 6 23 6 6 21 6 17 34 28 27 48 Average Speed 37 | 160 160 160 85 34 32 33 34 34 33 34 29 30 29 29 29 30 29 28 19 24 22 21 23 21 23 21 21 32 34 33 34 115 Slowest Speed 260 | 160 160 160 240 40 34 34 34 34 34 34 30 30 30 30 30 30 30 166 23 25 23 23 95 23 94 21 98 107 35 115 180 260 Overloaded Moves 888 | . . . . 57 35 34 . . 24 . 101 . 49 3 8 . 21 19 13 42 1 38 . 22 82 . 312 27 . . . . Propulsion Burnouts . | . . . . . . . . . . . . . . . . . . . . . . . . . . . . . . . . . Robots Hopped 74 | . . . 2 8 . 3 . . . 1 14 . 6 . 1 . . 2 . 7 . . . . 12 . 16 1 1 . . . Cave-ins Triggered 1 | . . . . . . . . . . . . . . . . . . . . . . . . . . . 1 . . . . . Teleports 1 | . . . . . . . . . . . . . . . . . . . . . . . . . . . . . . . 1 . Exploration Rate (%) 65 | 4 97 44 58 72 87 62 98 84 80 68 81 67 57 89 87 91 61 54 88 47 93 71 62 47 19 60 73 88 20 85 34 25 Regions Visited 32 Branch Regions 15 Pre-discovered Areas 8 | . . . . . . . . . 1 1 . . . . . 2 . . . . . . 3 1 . . . . . . . . Known Exits Taken 21 | . . . 1 . . 1 1 1 1 1 . . 1 1 1 1 1 . . 1 1 1 1 1 . . 1 1 1 1 1 . Unknown Exits Taken 3 | 1 1 1 . . . . . . . . . . . . . . . . . . . . . . . . . . . . . . Scrap Searched 29 | . . 5 . . . . 4 2 . 1 . . . 2 4 3 1 . . . 2 3 . 2 . . . . . . . . Spaces Dug 561 | . 22 4 4 64 . 38 . 2 . 2 111 . 55 23 2 2 1 43 . 39 2 4 . 4 16 . 78 3 16 5 17 4 Terrain Destroyed 754 | . 22 13 13 96 . 48 . 2 . 13 118 . 57 38 2 2 1 43 . 76 2 21 . 4 28 . 103 5 16 5 22 4 Melee 495 | . 22 4 4 57 . 38 . 2 . 2 98 . 53 3 2 2 1 43 . 31 2 4 . 4 16 . 69 3 16 5 13 1 Projectile 28 | . . 1 9 . . . . . . . . . 4 . . . . . . . . . . . . . . 2 . . 9 3 AOE 231 | . . 8 . 39 . 10 . . . 11 20 . . 35 . . . . . 45 . 17 . . 12 . 34 . . . . . Terrain Rammed . | . . . . . . . . . . . . . . . . . . . . . . . . . . . . . . . . . Walls Destroyed . | . . . . . . . . . . . . . . . . . . . . . . . . . . . . . . . . . Machines Disabled . | . . . . . . . . . . . . . . . . . . . . . . . . . . . . . . . . . Actions | -11 -10 -10 -8 -7 -7 -7 -7 -7 -7 -6 -6 -6 -6 -6 -6 -6 -5 -5 -5 -5 -5 -5 -5 -4 -4 -4 -4 -4 -3 -3 -2 -2 --------- Run | Jun Mat Sub Mat Fac Was Fac Low Low Dat Pro Fac Was Fac Low Low Zio Pro Fac Was Fac Upp Upp Zhi Pro Fac Was Fac Ext Res Tes Res Gar Total 46187 | 60 1093 1063 1681 3416 93 2863 984 821 121 557 6379 106 2971 935 980 1246 500 2736 70 2758 1034 690 214 284 1037 61 5450 2493 953 929 1322 287 Wait 4709 | 7 137 22 201 140 . 270 7 9 . . 549 . 95 64 112 173 27 631 4 307 132 71 2 1 107 . 754 615 57 94 107 14 Move 38688 | 38 787 934 1265 3120 89 2468 970 795 108 549 5432 106 2733 853 849 1055 449 1962 65 2318 888 599 188 275 864 61 4379 1650 846 716 1095 182 Hop 68 | . . . 2 8 . 3 . . . 1 13 . 6 . 1 . . 2 . 6 . . . . 9 . 15 1 1 . . . Pick Up 198 | . 18 9 26 14 2 10 . . 1 . 20 . 4 . . 2 1 18 1 4 1 . 3 . 5 . 28 8 6 8 7 2 Fast Attach 169 | . 1 5 8 4 . 5 1 . . . 10 . 1 . . 4 . 11 . 5 . 4 5 1 2 . 31 10 3 31 13 14 Attach 65 | . 2 4 10 2 . 2 . . . . 7 . 3 . . . . 9 . 1 . . . . 2 . 9 3 4 3 4 . Detach 9 | . 1 . 1 . . . . . . . . . . . . . . 2 . . . . . . . . 1 3 1 . . . Swap 356 | 3 7 10 33 14 . 12 1 4 . 1 52 . 27 6 1 3 1 25 . 16 5 5 2 1 6 . 42 12 10 16 30 11 Drop 283 | . 16 10 34 16 2 12 1 . 1 . 18 . 7 . . 6 1 14 . 8 1 2 7 . 4 . 44 17 4 38 12 8 Fire 247 | 12 62 36 75 5 . . . . . 2 4 . 4 7 . . . . . 11 . 2 . . 2 . 3 4 . 2 9 7 Melee 1138 | . 60 33 24 82 . 81 4 7 11 4 178 . 81 5 17 3 21 62 . 44 7 7 7 6 36 . 126 100 21 21 41 49 Ram 6 | . . . 2 . . . . . . . . . . . . . . . . . . . . . . . . . . . 4 . Kick . | . . . . . . . . . . . . . . . . . . . . . . . . . . . . . . . . . Crush 2 | . 2 . . . . . . . . . . . . . . . . . . . . . . . . . . . . . . . Escape Stasis 169 | . . . . . . . . . . . 71 . 10 . . . . . . . . . . . . . 18 70 . . . . Rewire . | . . . . . . . . . . . . . . . . . . . . . . . . . . . . . . . . . Trap 80 | . . . . 11 . . . 6 . . 25 . . . . . . . . 38 . . . . . . . . . . . . Miscellaneous . | . . . . . . . . . . . . . . . . . . . . . . . . . . . . . . . . . Route ------- -11/Junkyard -10/Materials (discovered 6 exits: [*Mat x3] / [*Min x2] / *Sub) -10/Subcaves -8/Materials -7/Factory (discovered 5 exits: *Fac x2 / *Sto / *Low x2) -7/Waste -7/Factory (discovered 8 exits: *Fac x4 / *Sto x2 / *Low x2) -7/Lower Caves -7/Lower Caves (discovered 2 exits: *Fac / *Dat) -7/Data Miner -6/Proximity Caves -6/Factory (discovered 4 exits: *Fac x2 / *Low x2) -6/Waste -6/Factory (discovered 4 exits: *Fac x2 / *Low x2) -6/Lower Caves -6/Lower Caves (discovered 2 exits: Fac / *Zio) -6/Zion (discovered 2 exits: *Dee / *Pro) -5/Proximity Caves -5/Factory (discovered 4 exits: *Fac x2 / *Upp x2) -5/Waste -5/Factory (discovered 6 exits: *Fac x4 / *Upp x2) -5/Upper Caves -5/Upper Caves -5/Zhirov -4/Proximity Caves -4/Factory (discovered 3 exits: *Res / *Ext x2) -4/Waste -4/Factory (discovered 9 exits: *Res x4 / *Upp x2 / *Ext x2 / Arm) -4/Extension (discovered 2 exits: *Res / *Cet) -3/Research (discovered 2 exits: *Tes x2) -3/Testing -2/Research -2/Garrison History --------- Turn | Location | Event 13 | -11/Junkyard | Discovered new exit (range 3) 110 | -11/Junkyard | Entered Materials 301 | -10/Materials | Build established: Mutant 490 | -10/Materials | Discovered new exit (range 16) 648 | -10/Materials | Discovered new exit (range 3) 835 | -10/Materials | Discovered new exit (range 16) 1165 | -10/Materials | Discovered new exit (range 4) 1524 | -10/Materials | Discovered new exit (range 11) 1692 | -10/Materials | Discovered new exit (range 16) 1887 | -10/Materials | Entered Subcaves 2153 | -10/Subcaves | Visited 4L-MR0's lab 2192 | -10/Subcaves | Found Flightbrick 2365 | -10/Subcaves | A swath of the cavern ceiling suddenly collapsed 2586 | -10/Subcaves | Build established: Scavenger-Mutant 2905 | -10/Subcaves | Shifting Twisted Machinery released Sub. Beam Cannon 2912 | -10/Subcaves | Core integrity fell below 50% 2954 | -10/Subcaves | Shifting Twisted Machinery released Spk. Treads 3389 | -10/Subcaves | Shifting Twisted Machinery released Scrap Shield 3560 | -10/Subcaves | Build established: Mutant 3591 | -10/Subcaves | Discovered new exit (range 14) 3639 | -10/Subcaves | Entered Materials 3639 | -8/Materials | Evolved 4 slots: Propulsion x2, Utility x2 4161 | -8/Materials | Build established: Scavenger-Mutant 4357 | -8/Materials | Repaired Broken Lgt. Nuclear Core 4497 | -8/Materials | Garrison activated, responded to threat 4764 | -8/Materials | Discovered new exit (range 13) 4894 | -8/Materials | Attached Flightbrick, gained temporary slots: Utility x3 4895 | -8/Materials | Identified exit to Factory 5194 | -8/Materials | Build established: Scavenger-Ninja 5321 | -8/Materials | Entered Factory 5321 | -7/Factory | Accompanied by 1 ally 5321 | -7/Factory | Evolved 2 slots: Power x1, Propulsion x1 5522 | -7/Factory | Discovered new exit (range 9) 5526 | -7/Factory | Identified exit to Storage 5635 | -7/Factory | Discovered new exit (range 12) 5639 | -7/Factory | Identified exit to Factory 5771 | -7/Factory | Fabricated Hvy. Pick? 5883 | -7/Factory | Discovered exit to Factory (range 4) 6040 | -7/Factory | Discovered new exit (range 10) 6280 | -7/Factory | Repaired Broken Cld. VTOL Module? 6307 | -7/Factory | Identified exit to Lower Caves 6850 | -7/Factory | Sucked down chute 6850 | -7/Factory | Entered Waste 6851 | -7/Waste | Met a frightened Derelict 6855 | -7/Waste | Spotted C-40 Crusher 6856 | -7/Waste | Spotted C-40 Crusher 6858 | -7/Waste | Spotted C-40 Crusher 6865 | -7/Waste | EMP discharged 6869 | -7/Waste | Spotted C-40 Crusher 6874 | -7/Waste | Spotted C-40 Crusher 6878 | -7/Waste | Discovered new exit (range 14) 6878 | -7/Waste | Spotted C-40 Crusher 6882 | -7/Waste | Identified exit to Factory 6882 | -7/Waste | Entered Factory 7328 | -7/Factory | Discovered exit to Factory (range 4) 7572 | -7/Factory | Repaired Lgt. Fission Core? 7947 | -7/Factory | Repaired Lgt. Nuclear Core 8255 | -7/Factory | Entered Lower Caves 8352 | -7/Lower Caves | Learned 4 Factory zone layouts 8364 | -7/Lower Caves | Learned Factory security intel 8563 | -7/Lower Caves | Discovered new exit (range 11) 8607 | -7/Lower Caves | Identified exit to Lower Caves 8607 | -7/Lower Caves | Entered another Lower Caves area 8634 | -7/Lower Caves | Learned location of 1 exit from Factory 8641 | -7/Lower Caves | Spotted B-75 Beast 8699 | -7/Lower Caves | Discovered exit to Factory (range 5) 8846 | -7/Lower Caves | Identified exit to Data Miner 8920 | -7/Lower Caves | Entered Data Miner 8920 | -7/Data Miner | Discovered new exit (range 6) 8927 | -7/Data Miner | Met Data Miner 8934 | -7/Data Miner | Learned location of Section 7 (-2) 8934 | -7/Data Miner | Acquired the access code to Warlord's prototype stash 8941 | -7/Data Miner | Received God Mode back door access code from Data Miner 8945 | -7/Data Miner | Destroyed Data Miner 8948 | -7/Data Miner | Found Prototype Hackware 8950 | -7/Data Miner | Data Conduit disabled 8990 | -7/Data Miner | Identified exit to Proximity Caves 8991 | -7/Data Miner | Entered Proximity Caves 8994 | -6/Proximity Caves | Spotted B-75 Beast 9057 | -6/Proximity Caves | Learned location of Zion (-6) 9129 | -6/Proximity Caves | Discovered exit to Factory (range 12) 9196 | -6/Proximity Caves | Entered Factory 9196 | -6/Factory | Evolved 2 slots: Propulsion x1, Utility x1 9197 | -6/Factory | Identified exit to Factory 9272 | -6/Factory | Spotted B-75 Beast 9402 | -6/Factory | Repaired Lgt. Nuclear Core? 9516 | -6/Factory | Repaired Mni. Grenade Launcher 9643 | -6/Factory | Identified System Mapper 9726 | -6/Factory | Discovered exit to Factory (range 12) 9870 | -6/Factory | Repaired Adv. Sensor Array 10113 | -6/Factory | Discovered new exit (range 8) 10115 | -6/Factory | Identified exit to Lower Caves 10513 | -6/Factory | Repaired Imp. Corruption Screen 10805 | -6/Factory | Build established: Hacker-Scout 11349 | -6/Factory | Discovered exit to Lower Caves (range 5) 11446 | -6/Factory | Build established: Scavenger-Ninja 11593 | -6/Factory | Fabricated Transmission Jammer (x1) 11820 | -6/Factory | Repaired Lgt. Fission Core 12090 | -6/Factory | Build established: Scavenger-Scout 12140 | -6/Factory | Manually triggered Chute Trap 12140 | -6/Factory | Sucked down chute 12140 | -6/Factory | Entered Waste 12154 | -6/Waste | Spotted C-40 Crusher 12154 | -6/Waste | Spotted C-40 Crusher 12156 | -6/Waste | Spotted C-40 Crusher 12157 | -6/Waste | Spotted C-40 Crusher 12162 | -6/Waste | Spotted C-40 Crusher 12165 | -6/Waste | Discovered new exit (range 11) 12172 | -6/Waste | Identified exit to Factory 12172 | -6/Waste | Entered Factory 12466 | -6/Factory | Discovered exit to Factory (range 7) 12478 | -6/Factory | Build established: Hacker-Scout 12577 | -6/Factory | Discovered exit to Factory (range 16) 12871 | -6/Factory | Central database locked down 13343 | -6/Factory | Fabricated Mic. Fission Core (x2) 13402 | -6/Factory | Entered Lower Caves 13408 | -6/Lower Caves | Spotted B-75 Beast 13617 | -6/Lower Caves | Learned 4 Factory zone layouts 13692 | -6/Lower Caves | Discovered new exit (range 11) 13758 | -6/Lower Caves | Identified exit to Lower Caves 13760 | -6/Lower Caves | Entered another Lower Caves area 13794 | -6/Lower Caves | Learned Factory terminal intel 13866 | -6/Lower Caves | Learned Factory stockpile data 13868 | -6/Lower Caves | Encountered a Warlord checkpoint 13868 | -6/Lower Caves | Discovered new exit (range 14) 13911 | -6/Lower Caves | Identified exit to Zion 13966 | -6/Lower Caves | Attacked by a delusional Derelict stockpiling Unaware 14168 | -6/Lower Caves | Entered Zion 14168 | -6/Zion | Accompanied by 4 allies 14174 | -6/Zion | Found CR-A16's Pointy Stick 14185 | -6/Zion | Discovered new exit (range 12) 14188 | -6/Zion | Identified exit to Proximity Caves 14202 | -6/Zion | System corruption cleaned by Quarantine Array 14223 | -6/Zion | Found Prototype Device 14223 | -6/Zion | Identified Phasing AFG 14275 | -6/Zion | Learned location of Warlord (-4) 14280 | -6/Zion | Learned location of 1 exit from Factory 14354 | -6/Zion | Given the Hacking Drone Bay 14355 | -6/Zion | Found Prototype Device 14355 | -6/Zion | Identified Hacking Drone Bay 14465 | -6/Zion | Discovered new exit (range 5) 14466 | -6/Zion | Saw the warning signs outside the Deep Caves entrance 14466 | -6/Zion | Identified exit to Deep Caves 14683 | -6/Zion | Entered Proximity Caves 14683 | -5/Proximity Caves | Accompanied by 4 allies 14685 | -5/Proximity Caves | Attracted the attention of an 0b10 checkpoint 14736 | -5/Proximity Caves | Learned 8 Factory zone layouts 14738 | -5/Proximity Caves | Learned 8 Factory zone layouts 14838 | -5/Proximity Caves | Spotted B-75 Beast 14872 | -5/Proximity Caves | Revealed the true nature of CR-A16's Pointy Stick 14876 | -5/Proximity Caves | Destroyed B-75 Beast 14883 | -5/Proximity Caves | Learned Factory emergency access door positions 14908 | -5/Proximity Caves | Discovered exit to Factory (range 5) 14909 | -5/Proximity Caves | Entered Factory 14909 | -5/Factory | Evolved 2 slots: Utility x2 14910 | -5/Factory | Identified exit to Upper Caves 14911 | -5/Factory | Identified exit to Factory 14915 | -5/Factory | Loaded intel: 25 terminal locations 15075 | -5/Factory | Repaired Mic. Fission Core 15086 | -5/Factory | Repaired Mni. Grenade Launcher 15110 | -5/Factory | Repaired Cld. VTOL Module 15226 | -5/Factory | Build established: Hacker-Ninja 15728 | -5/Factory | Fabricated Lrn. Sensor Array (x1) 15782 | -5/Factory | Repaired Cld. VTOL Module 15817 | -5/Factory | Repaired Cld. VTOL Module 15869 | -5/Factory | Repaired Power Maul 15965 | -5/Factory | Spotted B-75 Beast 16192 | -5/Factory | Fabricated Exp. Propulsion Shielding (x1) 16330 | -5/Factory | Build established: Hacker-Sprinter 16380 | -5/Factory | Sucked down chute 16380 | -5/Factory | Entered Waste 16384 | -5/Waste | Spotted C-40 Crusher 16387 | -5/Waste | Spotted C-40 Crusher 16389 | -5/Waste | Spotted C-40 Crusher 16390 | -5/Waste | Discovered new exit (range 16) 16391 | -5/Waste | Spotted C-40 Crusher 16393 | -5/Waste | Spotted C-40 Crusher 16398 | -5/Waste | Identified exit to Factory 16398 | -5/Waste | Entered Factory 16425 | -5/Factory | Discovered exit to Upper Caves (range 6) 16565 | -5/Factory | Spotted B-75 Beast 16757 | -5/Factory | Discovered exit to Factory (range 14) 16832 | -5/Factory | Repaired Lrn. Sensor Array 17405 | -5/Factory | Destroyed 7 combat bots 17436 | -5/Factory | Fabricated Enh. Force Lance (x1) 17452 | -5/Factory | Local machine network offline 17501 | -5/Factory | Entered Upper Caves 17540 | -5/Upper Caves | Encountered a Warlord checkpoint 17651 | -5/Upper Caves | Learned Factory stockpile data 17780 | -5/Upper Caves | Learned Factory garrison access intel 17797 | -5/Upper Caves | Build established: Hacker-Scout 17804 | -5/Upper Caves | Discovered new exit (range 5) 17806 | -5/Upper Caves | Identified exit to Upper Caves 17868 | -5/Upper Caves | Entered another Upper Caves area 17873 | -5/Upper Caves | Spotted B-75 Beast 17913 | -5/Upper Caves | Found Alien Artifact 17913 | -5/Upper Caves | Identified Dimensional Node Initializer 17913 | -5/Upper Caves | Initialized slip node 17935 | -5/Upper Caves | Discovered new exit (range 13) 17968 | -5/Upper Caves | Found Alien Artifact 17968 | -5/Upper Caves | Identified Core Expander 17968 | -5/Upper Caves | Installed Core Expander, added new Power slot 18055 | -5/Upper Caves | Identified exit to Zhirov 18103 | -5/Upper Caves | Learned 4 Factory zone layouts 18110 | -5/Upper Caves | Entered Zhirov 18110 | -5/Zhirov | Discovered new exit (range 3) 18115 | -5/Zhirov | Met Zhirov 18120 | -5/Zhirov | Learned location of Quarantine (-2) 18120 | -5/Zhirov | Learned location of Command (-1) 18120 | -5/Zhirov | Learned location of Testing (-3) 18124 | -5/Zhirov | Zhirov requested help retrieving the SGEMP Prototype 18128 | -5/Zhirov | Found Alien Artifact 18128 | -5/Zhirov | Identified Integrated Dissipator 18128 | -5/Zhirov | Installed Integrated Dissipator, increased core heat dissipation (+20) 18136 | -5/Zhirov | Found Alien Artifact 18195 | -5/Zhirov | Identified exit to Proximity Caves 18196 | -5/Zhirov | Entered Proximity Caves 18244 | -4/Proximity Caves | Attracted the attention of an 0b10 checkpoint 18266 | -4/Proximity Caves | Discovered exit to Factory (range 4) 18275 | -4/Proximity Caves | Entered Factory 18275 | -4/Factory | Evolved 2 slots: Utility x2 18276 | -4/Factory | Identified exit to Extension 18279 | -4/Factory | Loaded intel: 4 garrison access locations 18390 | -4/Factory | Discovered exit to Extension (range 10) 18582 | -4/Factory | Build established: Hacker-Ninja 18601 | -4/Factory | Local machine network offline 18605 | -4/Factory | Discovered new exit (range 7) 18610 | -4/Factory | Identified exit to Research 18707 | -4/Factory | Manually triggered Chute Trap 18707 | -4/Factory | Sucked down chute 18707 | -4/Factory | Entered Waste 18707 | -4/Waste | Met up with 1 ally sucked down the chute earlier 18712 | -4/Waste | Spotted C-40 Crusher 18715 | -4/Waste | Spotted C-40 Crusher 18716 | -4/Waste | Spotted C-40 Crusher 18717 | -4/Waste | Discovered new exit (range 15) 18718 | -4/Waste | Spotted C-40 Crusher 18718 | -4/Waste | Spotted C-40 Crusher 18720 | -4/Waste | Identified exit to Factory 18720 | -4/Waste | Entered Factory 18740 | -4/Factory | Identified Transdimensional Reconstructor 18761 | -4/Factory | Identified exit to Upper Caves 18761 | -4/Factory | Identified exit to Armory 18967 | -4/Factory | Found Prototype Device 18968 | -4/Factory | Identified Exp. EM Disruption Field 19038 | -4/Factory | Repaired Exp. Propulsion Shielding 19108 | -4/Factory | Repaired Cld. VTOL Module 19199 | -4/Factory | Lost 3 parts (1p1u1w) 19291 | -4/Factory | Spotted B-86 Titan 19363 | -4/Factory | Lost 3 parts (1n2u) 19451 | -4/Factory | Fabricated Mic. Fission Core (x2) 19609 | -4/Factory | Fabricated Exp. Propulsion Shielding? 19675 | -4/Factory | Crushed by falling debris 19706 | -4/Factory | Lost 3 parts (2n1w) 19741 | -4/Factory | Fabricated Cld. Cesium-ion Thruster (x1) 20307 | -4/Factory | Repaired Field Propulsion Drive 20368 | -4/Factory | Build established: Hacker-Sprinter 20370 | -4/Factory | Repaired Adv. Reaction Control System 20427 | -4/Factory | Repaired Adv. System Restoration Module 20640 | -4/Factory | Destroyed B-86 Titan 20759 | -4/Factory | Spotted B-86 Titan 20759 | -4/Factory | Destroyed B-86 Titan 20954 | -4/Factory | Repaired Gravity Neutralizer 20992 | -4/Factory | Entered Extension 21018 | -4/Extension | Spotted B-86 Titan 21018 | -4/Extension | Spotted B-86 Titan 21019 | -4/Extension | Local machine network offline 21021 | -4/Extension | Destroyed B-86 Titan 21028 | -4/Extension | Destroyed B-86 Titan 21094 | -4/Extension | Build established: Hacker-Ninja 21111 | -4/Extension | Rescued a captive Derelict 21122 | -4/Extension | Rescued a captive Derelict 21126 | -4/Extension | Rescued a captive Derelict 21160 | -4/Extension | Rescued a captive Derelict 21161 | -4/Extension | Rescued a captive Derelict 21168 | -4/Extension | Lost 3 parts (3n) 21169 | -4/Extension | Rescued a captive Derelict 21236 | -4/Extension | Rescued a captive Derelict 21342 | -4/Extension | Disrupted transfer network 21442 | -4/Extension | Rescued a captive Derelict 21450 | -4/Extension | Rescued a captive Derelict 21452 | -4/Extension | Rescued a captive Derelict 21485 | -4/Extension | Rescued a captive Derelict 21492 | -4/Extension | First assault squad dispatched 21643 | -4/Extension | Rescued A7 21713 | -4/Extension | Discovered exit to Research (range 10) 21716 | -4/Extension | Discovered new exit (range 6) 21718 | -4/Extension | Identified exit to Cetus 22194 | -4/Extension | Build established: Hacker-Mutant 22541 | -4/Extension | Destroyed A7 22544 | -4/Extension | Extracted ID and sensor layout for unrecognized location from A7's data core 22550 | -4/Extension | Entered Research 22550 | -3/Research | Accompanied by 1 ally 22550 | -3/Research | Evolved 2 slots: Utility x2 22555 | -3/Research | Identified exit to Testing 22877 | -3/Research | Fabricated Adv. Transmission Jammer? 22995 | -3/Research | Entered Testing 22995 | -3/Testing | Spotted Alpha 7 23005 | -3/Testing | Local machine network offline 23011 | -3/Testing | Spotted PH-00Y1LBP6DJ 23025 | -3/Testing | Found Prototype Protection 23025 | -3/Testing | Identified Centrium Heavy Armor Plating 23075 | -3/Testing | Spotted Striker 23082 | -3/Testing | Found Prototype Device 23082 | -3/Testing | Identified AEGIS Remote Shield 23101 | -3/Testing | Spotted Striker 23130 | -3/Testing | Found Prototype Energy Cannon 23130 | -3/Testing | Identified Potential Cannon 23132 | -3/Testing | Found Prototype Energy Cannon 23132 | -3/Testing | Identified Imp. Potential Cannon 23188 | -3/Testing | Found Prototype Energy Cannon 23188 | -3/Testing | Identified Cld. Nova Cannon 23245 | -3/Testing | Search patrols dispatched 23316 | -3/Testing | Found Prototype Energy Gun 23316 | -3/Testing | Identified Tachyon Dispersion Ray 23404 | -3/Testing | Discovered new exit (range 16) 23405 | -3/Testing | Found Prototype Slashing Weapon 23421 | -3/Testing | Identified Nanosword 23450 | -3/Testing | Found Prototype Protection 23451 | -3/Testing | Identified Med. Regenerative Plating 23491 | -3/Testing | Found Nanosword 23497 | -3/Testing | Identified exit to Research 23497 | -3/Testing | Entered Research 23497 | -2/Research | Evolved 2 slots: Utility x2 23625 | -2/Research | Identified exit to DSF 23828 | -2/Research | Local machine network offline 24050 | -2/Research | Warped through subspace 24101 | -2/Research | Lost 4 parts (1p1n2u) 24188 | -2/Research | Identified exit to Garrison 24188 | -2/Research | Entered Garrison 24191 | -2/Garrison | Lost 3 parts (3n) 24198 | -2/Garrison | Triggered checkpoint 24303 | -2/Garrison | Garrison Relay disabled 24346 | -2/Garrison | Spotted B-90 Cyclops 24482 | -2/Garrison | Triggered checkpoint 24501 | -2/Garrison | Triggered checkpoint 24502 | -2/Garrison | Destroyed B-90 Cyclops 24544 | -2/Garrison | Build established: Scavenger-Mutant 24583 | -2/Garrison | Triggered checkpoint 24593 | -2/Garrison | Self-destructed Last Messages --------------- 24561_ H-88 Terminator Lgt. Quantum Reactor severed. 24561_ Penetrated by Slug. 24563_ Destroyed Adv. Phase Shifter. 24566_ Penetrated by Slug. 24566_ Lgt. Quantum Reactor destroyed. 24566_ Penetrated by Slug. 24571_ Slug penetrates Reinforced Barrier. 24572_ H-88 Terminator KE Penetrator severed. 24574_ H-88 Terminator destroyed. 24575_ 1MVJBXBZT4UCN%/HODRAG% A71%TN9 W, 24579_ Dropped Myomer Leg. 24580_ Myomer Leg destroyed. 24580_ Acquired Myomer Leg. 24581_ Lgt. Quantum Reactor destroyed. 24583_ Garrison Door breached. 24583_ Beams of light sweep through the air. An alarm sounds. 24591_ Med. Regenerative Plating destroyed. 24591_ Myomer Leg destroyed. 24592_ Acquired Biometal Leg. 24593_ Lgt. Quantum Reactor destroyed. Map ----- +----------------------------------------------------+ | ?????????????????????????????????????# #######?? | | ???????????????????????????????###???# = % #?? | | ???????????????????????????????# ???+ [ [#?? | | ???????????????????????????????# #???# #### #?? | | ???????????????????????????????# #???# #??# ### | | ???????????????????????????????# #???# #??# # | | ??????+????????????????????????# #???# #??# # | | ???????????????????????????????# #???# #??# # | | ???????????????????????????????# #???# #??# ### | | ???????????????????????????????# #???# #??# #?? | | ???????????????????????????????# #???# #??# #?? | | ???????????????????????????????# #???# #??# ### | | ???????????????????????????????# #???# #??# #"# | | ???????????????????????????????# #???# #??# !!!# | | ???????????????????????????????# #???# #### !"# | | ??????????????????????????###### ##### + + !"# | | ??????????????????????????#*#%![! " " " #"# | | ?????????????????????######=%*[####### ######### | | ?????????????????????# = [/# ###??# #???????? | | ????????????????###### ##%=### #### #???????? | | ???????????###### [![[! #???????? | | ??????+??? [!%= #???????? | | ??????+???? * [ #???????? | | ????????+?????### ## % ## ###########???????? | | ????????????????# ## [!;; ###???????????????? | | ??????????????+ g ^=!!@ " #???????????????? | | ??????????????# ss%] " #???????????????? | | ??????????????#g s!! " #???????????????? | | ??????????????# s s " #???????????????? | | ??????????????### ## ## ###???????????????? | | ????????????????# ##^ ## #############?????? | | ??????????????? + ^ #?????? | | ?????????????? + #?????? | | ?????????????#### ####+##### #?????? | | ????????????????#? ## ###+##??# #???# #?????? | | ?????????????????? ?# #??????????????????????? | | ????????????????? ??#+##+#??????????????????????? | | ????????????????? ??????????????????????????????? | | ????????????????+???+???????????????????+??+?????? | | ?????????????????????????????????????????????????? | | ?????????????????????????????????????????????????? | | ????????++?????????????????????????????????????+?? | | ?????????????????????????????????????????????????? | | ?????????????????????????????????????????????????? | | ???????????????????????????????????+?????????????? | | ??????????????????????????????????????????+??????? | | ?????????????????????????????????????????????????? | | ?????????????????????????????????????????????????? | | ?????????????????????????????+???????????????????? | | ???????????????????????????????????????+?????????? | +----------------------------------------------------+ Best States ------------- Heat Dissipation 126 Coolant Potential 80 Energy Generation 65 Energy Capacity 870 Matter Stores 472 Matter Capacity 800 Sight Range 20 Robot Scan Range 18 Terrain Scan Density 10 ECM Strength 2 Jamming Range 16 Cloak Strength 3 Power Amplification 30 Additional Mass Support 20 Corruption Block 15 Armor Coverage 225 Propulsion Shielding 90 Utility Shielding 66 Phase Shifting 15 Evasion (%) 86 Recoil Reduction 4 Particle Charging 20 Offensive Hacking 34 Defensive Hacking 28 Authchip Count 1 Trap Extractor Capacity 6 Item Schematics ----------------- Cld. VTOL Module | -7/Factory | Scanalyzed Combat Drone Bay | -7/Data Miner | Free Lgt. Regenerative Plating | -7/Data Miner | Free Cld. Cesium-ion Thruster | -7/Data Miner | Free Exp. Power Shielding | -7/Data Miner | Free Imp. Heavy Laser | -7/Data Miner | Free Gyrokinetic Inverter | -7/Data Miner | Free Point Defense System | -7/Data Miner | Free Variable Charge Gun | -7/Data Miner | Free Gravmag Array | -7/Data Miner | Free Lrn. Proton Cannon | -7/Data Miner | Free Field Propulsion Array | -7/Data Miner | Free Mic. Fission Core | -6/Factory | Hacked Transmission Jammer | -6/Factory | Hacked Imp. Utility Shielding | -6/Factory | Scanalyzed Triangulator | -6/Factory | Hacked Weapon Mount | -5/Factory | Hacked Exp. Propulsion Shielding | -5/Factory | Hacked Adv. Powered Armor | -5/Factory | Hacked Lrn. Sensor Array | -5/Factory | Scanalyzed Adv. Transmission Jammer | -5/Factory | Hacked Enh. Force Lance | -5/Factory | Hacked Assault Drone Bay | -5/Zhirov | Free Exp. Heat Sink | -5/Zhirov | Free Exp. Optical Array | -5/Zhirov | Free Imp. Arc Thrower | -5/Zhirov | Free Adv. Power Amplifier | -4/Factory | Scanalyzed Imp. Light Armor Plating | -4/Factory | Scanalyzed Adv. System Shield | -4/Factory | Scanalyzed Imp. Trap Extractor | -4/Factory | Scanalyzed Imp. Armor Integrity Analyzer | -4/Factory | Scanalyzed Exp. Cooling System | -4/Factory | Scanalyzed Nanosword | -2/Research | Scanalyzed Cld. Impulse Thruster | -2/Research | Scanalyzed Robot Schematics ------------------ M-14 Sweeper | -7/Data Miner | Free G-50 Soldier | -7/Data Miner | Free B-48 Gladiator | -7/Data Miner | Free Fabricated ------------ Hvy. Pick | x2 | -7/Factory | Preloaded Transmission Jammer | x1 | -6/Factory | Authchip Mic. Fission Core | x2 | -6/Factory Lrn. Sensor Array | x1 | -5/Factory | Preloaded Exp. Propulsion Shielding | x1 | -5/Factory Enh. Force Lance | x1 | -5/Factory Mic. Fission Core | x2 | -4/Factory Exp. Propulsion Shielding | x1 | -4/Factory Cld. Cesium-ion Thruster | x1 | -4/Factory Adv. Transmission Jammer | x1 | -3/Research Alien Tech Used ----------------- Dimensional Node Initializer Core Expander Integrated Dissipator Transdimensional Reconstructor Achievements -------------- None Challenges ------------ None Game ------ Seed CarbideStormOptics Manual? 0 Play Time 13:55:40 Cumulative 423.7 hours Start 2023.12.01 @ 11:14:07 End 2023.12.04 @ 23:06:42 Sessions 13 Manual Loads 0 Difficulty Rogue Special Mode None Game No. 200 Rogue 200 Adventurer 0 Explorer 0 Win Type - Total 14 Types 8/0/4/2/0/0/0/0/0 Lore% 82 Gallery% 84 Achievement% 71 Wizard Run 0 Options --------- ASCII 0 Keyboard 0 Movement Mouse Keybinds 0 Fullscreen 1 Font 12/Smallcaps Map View 76x56 Tactical HUD 1 Map Filters NONE Filters NONE Steam 1 RUN: 720edca4-c68d-4453-9568-27d1f774bc64